Workbook

Sheet Pres & Prop Rev
A2: Effective September 1, 2024
H3: ALERIS | I3: CLEARWATER
D4: GEN SERVICE | E4: LRG GEN SVC | F4: INTERRUPTIBLE | G4: TRANSPORT | H4: TRANSPORT | I4: TRANSPORT
C5: TOTAL | D5: SCHEDULE 101 | E5: SCH. 111&112 | F5: SCH. 131&132 | G5: SCHEDULE 146 | H5: SCHEDULE 147 | I5: SCHEDULE 159 | P5: Print Header for all printed pages on this worksheet:
B6: PRESENT BILL DETERMINANTS | L6: Calculate all revenue exhibits using ____ rates: | P6: ="AVISTA UTILITIES IDAHO GAS, CASE NO. AVU-G-23-01 PRO FORMA REVENUE UNDER PRESENT AND PROPOSED "&N9&" RATES 12 MONTHS ENDED JUNE 30, 2022" -> AVISTA UTILITIES IDAHO GAS, CASE NO. AVU-G-23-01 PRO FORMA REVENUE UNDER PRESENT AND PROPOSED BASE TARIFF RATES 12 MONTHS ENDED JUNE 30, 2022
B7: THERMS | K7: 1) | L7: BASE TARIFF
B8: BLOCK 1 | D8: ='Bill Determ'!B8 -> 70027024.2 | E8: ='Bill Determ'!B15 -> 3283296.172 | F8: ='Bill Determ'!B25 -> 0.1 | G8: ='Bill Determ'!B29 -> 3922248 | H8: ='Big Schedules'!N46 -> 1314220 | I8: ='Bill Determ'!B35 -> 51912883 | L8: or | N8: 1
B9: BLOCK 2 | E9: ='Bill Determ'!C15 -> 8247668.847 | K9: 2) | L9: BILLING | N9: =CHOOSE(Base1_Billing2,L7,L9) -> BASE TARIFF
B10: BLOCK 3 | E10: ='Bill Determ'!D15 -> 11206259.6 | F10: ='Bill Determ'!D25 -> 0 | G10: ='Bill Determ'!D29 -> 0 | N10: =CHOOSE(Base1_Billing2,"Base","Billing") -> Base
B11: BLOCK 4 | E11: ='Bill Determ'!E15 -> 3500647.971 | F11: ='Bill Determ'!E25 -> 0 | G11: ='Bill Determ'!E29 -> 0
B12: BLOCK 5 | G12: ='Bill Determ'!F29 -> 0
B14: SUBTOTAL | C14: =SUM(D14:I14) -> 153414247.9 | D14: =SUM(D8:D12) -> 70027024.2 | E14: 26237872.59 | F14: 0.1 | G14: =SUM(G8:G12) -> 3922248 | H14: =SUM(H8:H12) -> 1314220 | I14: 51912883
B15: LOAD ADJUSTMENT
B17: SUBTOTAL | C17: =SUM(D17:I17) -> 153414247.9 | D17: =D14+D15 -> 70027024.2 | E17: 26237872.59 | F17: 0.1 | G17: =G14+G15 -> 3922248 | H17: 1314220 | I17: 51912883
B18: ADJUSTMENT TO ACTUAL | C18: =SUM(D18:I18) -> 0 | E18: ='Bill Determ'!F21 -> 0
B20: TOTAL BEFORE ADJUSTMENT | C20: =SUM(D20:I20) -> 153414247.9 | D20: =D17+D18 -> 70027024.2 | E20: 26237872.59 | F20: 0.1 | G20: =G17+H18 -> 3922248 | H20: =H17+H18 -> 1314220 | I20: 51912883
B21: WEATHER & UNBILLED REV. ADJ. | C21: =SUM(D21:I21) -> -710273 | D21: =D134+D137 -> -547518 | E21: -162755 | F21: 0 | G21: =G134+G137 -> 0 | H21: 0 | I21: 0
B23: TOTAL PROFORMA THERMS | C23: =IF(ROUND(SUM(C20:C21),3)<>ROUND(SUM(D23:I23),3),#VALUE!,SUM(D23:I23)) -> 152703974.9 | D23: =SUM(D20:D21) -> 69479506.2 | E23: 26075117.59 | F23: 0.1 | G23: =SUM(G20:G21) -> 3922248 | H23: 1314220 | I23: 51912883
B25: TOTAL BILLS | D25: ='Bill Determ'!C8 -> 1079689 | F25: ='Bill Determ'!C25 -> 0 | G25: ='Bill Determ'!C29 -> 72 | H25: ='Bill Determ'!C32 -> 12 | I25: ='Bill Determ'!C35 -> 12
B26: TOTAL MINIMUM BILLS | E26: ='Bill Determ'!G15 -> 18727
B29: PROPOSED BILL DETERMINANTS
B30: THERMS
B31: BLOCK 1 | D31: =D8 -> 70027024.2 | E31: ='Bill Determ'!B15 -> 3283296.172 | F31: =F8 -> 0.1 | G31: 3922248 | H31: 1314220 | I31: 51912883
B32: BLOCK 2 | D32: =D9 -> 0 | E32: ='Bill Determ'!C15 -> 8247668.847 | F32: 0 | G32: 0 | H32: 0 | I32: 0
B33: BLOCK 3 | D33: =D10 -> 0 | E33: ='Bill Determ'!D15 -> 11206259.6 | F33: 0 | G33: 0 | H33: 0 | I33: 0
B34: BLOCK 4 | D34: =D11 -> 0 | E34: ='Bill Determ'!E15 -> 3500647.971 | F34: 0 | G34: 0 | H34: 0 | I34: 0
B35: BLOCK 5 | D35: =D12 -> 0 | E35: =E12 -> 0 | F35: =F12 -> 0 | G35: =G12 -> 0 | H35: =H12 -> 0 | I35: =I12 -> 0
B37: SUBTOTAL | C37: =SUM(D37:I37) -> 153414247.9 | D37: =SUM(D31:D35) -> 70027024.2 | E37: 26237872.59 | F37: 0.1 | G37: =SUM(G31:G35) -> 3922248 | H37: =SUM(H31:H35) -> 1314220 | I37: 51912883
B38: NET SHIFTING ADJUSTMENT | C38: =SUM(D38:I38) -> 0 | D38: =D15 -> 0 | E38: 0 | F38: 0 | G38: =G15 -> 0 | H38: 0 | I38: 0
B40: SUBTOTAL | C40: =SUM(D40:I40) -> 153414247.9 | D40: =D37+D38 -> 70027024.2 | E40: 26237872.59 | F40: 0.1 | G40: =G37+G38 -> 3922248 | H40: 1314220 | I40: 51912883
B41: ADJUSTMENT TO ACTUAL | C41: =SUM(D41:I41) -> 0 | D41: =D18 -> 0 | E41: 0 | F41: 0 | G41: 0 | H41: 0 | I41: 0
B43: TOTAL BEFORE ADJUSTMENT | C43: =SUM(D43:I43) -> 153414247.9 | D43: =D40+D41 -> 70027024.2 | E43: 26237872.59 | F43: 0.1 | G43: =G40+G41 -> 3922248 | H43: =H40+H41 -> 1314220 | I43: 51912883
B44: WEATHER & UNBILLED REV. ADJ. | C44: =SUM(D44:I44) -> -710273 | D44: =D21 -> -547518 | E44: -162755 | F44: 0 | G44: =G21 -> 0 | H44: 0 | I44: 0
B46: TOTAL PROFORMA THERMS | C46: =IF(ROUND(SUM(C43:C44),3)<>ROUND(SUM(D46:I46),3),#VALUE!,SUM(D46:I46)) -> 152703974.9 | D46: =D43+D44 -> 69479506.2 | E46: 26075117.59 | F46: 0.1 | G46: =G43+G44 -> 3922248 | H46: 1314220 | I46: 51912883
B48: TOTAL BILLS | D48: =D25 -> 1079689 | E48: 0 | F48: 0 | G48: 72 | H48: 12 | I48: 12
B49: TOTAL MINIMUM BILLS | D49: =D26 -> 0 | E49: ='Bill Determ'!G15 -> 18727
D51: 1 | E51: 2 | F51: 3 | G51: 4 | H51: 5 | I51: 6
H52: ALERIS | I52: CLEARWATER
D53: GEN SERVICE | E53: LRG GEN SVC | F53: INTERRUPTIBLE | G53: TRANSPORT | H53: TRANSPORT | I53: TRANSPORT | L53: ="selected in cell "&CELL("address",Base1_Billing2)&":" -> selected in cell $N$8:
C54: TOTAL | D54: SCHEDULE 101 | E54: SCHEDULE 111 | F54: SCHEDULE 131 | G54: SCHEDULE 146 | H54: SCHEDULE 147 | I54: SCHEDULE 159 | L54: =N10 -> Base
B55: PRESENT RATES | H55: -1 | I55: -2 | L55: ="Rates_"&$L$54&"_Present" -> Rates_Base_Present | N55: - range name where Present Rates table can be found
B56: BASIC CHARGE | D56: =INDEX(INDIRECT($L$55),$J56,D$51) -> 15 | E56: 0 | F56: 0 | G56: 300 | I56: ='Big Schedules'!N66/12 -> 6166.67 | J56: 1 | L56: ="Rates_"&$L$54&"_Proposed" -> Rates_Base_Proposed | N56: - range name where Proposed Rates table can be found
B57: MONTHLY MINIMUM | D57: 0 | E57: 81.74 | F57: 0 | G57: 0 | J57: 2
B59: BLOCK 1 PER THERM | D59: =INDEX(INDIRECT($L$55),$J59,D$51) -> 33.371 | E59: 0 | F59: 20.379 | G59: 12.232 | H59: 2 | J59: 3
B60: BLOCK 2 PER THERM | D60: 0 | E60: 32.368 | F60: 0 | G60: 0 | J60: 4
B61: BLOCK 3 PER THERM | D61: 0 | E61: 23.575 | F61: 0 | G61: 0 | J61: 5
B62: BLOCK 4 PER THERM | D62: 0 | E62: 17.764 | F62: 0 | G62: 0 | J62: 6
B63: BLOCK 5 PER THERM | D63: 0 | E63: 0 | F63: 0 | G63: 0 | J63: 7
B65: ADJUST TO ACTUAL PER THERM | E65: =(E118-E106-E107)/E17*100 -> 22.61363317 | F65: =(F118-F106-F107)/F17*100 -> 20
B73: PROPOSED RATES
B74: BASIC CHARGE | D74: =INDEX(INDIRECT($L$56),$J74,D$51) -> 20 | E74: 0 | F74: 0 | G74: 300 | I74: ='Big Schedules'!N66/12 -> 6166.67 | J74: 1
B75: MONTHLY MINIMUM | D75: 0 | E75: 71.21 | F75: 0 | G75: 0 | J75: 2
B77: BLOCK 1 PER THERM | D77: =INDEX(INDIRECT($L$56),$J77,D$51) -> 25.605 | E77: 0 | F77: 20.379 | G77: 12.232 | H77: 2 | J77: 3
B78: BLOCK 2 PER THERM | D78: 0 | E78: 33.451 | F78: 0 | G78: 0 | J78: 4
B79: BLOCK 3 PER THERM | D79: 0 | E79: 24.364 | F79: 0 | G79: 0 | J79: 5
B80: BLOCK 4 PER THERM | D80: 0 | E80: 18.358 | F80: 0 | G80: 0 | J80: 6
B81: BLOCK 5 PER THERM | D81: 0 | E81: 0 | F81: 0 | G81: 0 | J81: 7
B83: ADJUST TO ACTUAL PER THERM | E83: =(E167-E155-E156)/E40*100 -> 23.37030081 | F83: =(F167-F155-F156)/F40*100 -> 20
B87: (1) Block 1 - ALERIS - workpaper PDE-G-17
B89: (2) Monthly minimum / rate per therm - workpaper PDE-G-19
A100: =A2 -> Effective September 1, 2024
H101: ALERIS | I101: CLEARWATER
D102: GEN SERVICE | E102: LRG GEN SVC | F102: INTERRUPTIBLE | G102: TRANSPORT | H102: TRANSPORT | I102: TRANSPORT
C103: TOTAL | D103: SCHEDULE 101 | E103: SCHEDULE 111 | F103: SCHEDULE 131 | G103: SCHEDULE 146 | H103: SCHEDULE 147 | I103: SCHEDULE 159
B104: PRESENT REVENUE
B105: =UPPER(CHOOSE(Base1_Billing2,$N$9,$N$10))&" REVENUE" -> BASE TARIFF REVENUE
B106: BASIC CHARGE | C106: =SUM(D106:I106) -> 16290935.04 | D106: =D25*D56 -> 16195335 | E106: 0 | F106: 0 | G106: =G25*G56 -> 21600 | H106: 0 | I106: =I25*I56 -> 74000.04
B107: MONTHLY MINIMUM | C107: 1530744.98 | D107: 0 | E107: =E26*E57 -> 1530744.98 | F107: 0 | G107: ='Big Schedules'!V11 -> 0 | H107: 0 | I107: 0
B108: BLOCK 1 | C108: 23874772.05 | D108: =ROUND(D8*D59/100,2) -> 23368718.25 | E108: =ROUND(E8*E59/100,2) -> 0 | F108: =ROUND(F8*F59/100,2) -> 0.02 | G108: 479769.38 | H108: 26284.4 | I108: 0
B109: BLOCK 2 | C109: 2669605.45 | D109: 0 | E109: 2669605.45 | F109: 0 | G109: 0 | H109: 0 | I109: 0
B110: BLOCK 3 | C110: 2641875.7 | D110: 0 | E110: 2641875.7 | F110: 0 | G110: 0 | H110: 0 | I110: 0
B111: BLOCK 4 | C111: 621855.11 | D111: =ROUND(D11*D62/100,2) -> 0 | E111: 621855.11 | F111: 0 | G111: 0 | H111: 0 | I111: 0
B112: BLOCK 5 | C112: 0 | D112: =ROUND(D12*D63/100,2) -> 0 | E112: 0 | F112: 0 | G112: 0 | H112: 0 | I112: 0
B113: ANNUAL MINIMUM | C113: 0
B115: SUBTOTAL | C115: =IF(ROUND(SUM(D115:I115),3)<>ROUND(SUM(C106:C113),3),#VALUE!,SUM(D115:I115)) -> 47629788.33 | D115: =SUM(D106:D113) -> 39564053.25 | E115: 7464081.24 | F115: 0.02 | G115: 501369.38 | H115: 26284.4 | I115: 74000.04
B116: NET SHIFTING ADJUSTMENT
B118: SUBTOTAL | C118: =SUM(D118:I118) -> 47629788.33 | D118: =D115+D116 -> 39564053.25 | E118: 7464081.24 | F118: 0.02 | G118: 501369.38 | H118: 26284.4 | I118: 74000.04
B119: ADJUST TO ACTUAL | C119: =SUM(D119:I119) -> 0 | D119: =ROUND(D18*D65/100,2) -> 0 | E119: =ROUND(E18*E65/100,2) -> 0 | F119: 0 | G119: 0 | H119: 0 | I119: 0
B121: ="TOTAL "&UPPER(CHOOSE(Base1_Billing2,$N$9,$N$10))&" REVENUE" -> TOTAL BASE TARIFF REVENUE | C121: =IF(ROUND(C118+C119,3)<>ROUND(SUM(D121:I121),3),#VALUE!,SUM(D121:I121)) -> 47629788.33 | D121: =D118+D119 -> 39564053.25 | E121: 7464081.24 | F121: 0.02 | G121: 501369.38 | H121: 26284.4 | I121: 74000.04
B124: ADJUSTMENT REVENUE
B125: UNBILLED REVENUE ADJUSTMENT
B126: UNBILLED LOAD THERMS | C126: =SUM(D126:I126) -> 46442 | D126: ='Rev Runs CY'!P62 -> 72164 | E126: ='Rev Runs CY'!P63 -> -25722
B127: UNBILLED LOAD RATE | D127: =D59 -> 33.371 | E127: =E211 -> 22.61363317
B128: UNBILLED LOAD REVENUE | C128: =SUM(D128:I128) -> 18265.17 | D128: =ROUND(D126*D127/100,2) -> 24081.85 | E128: =ROUND(E126*E127/100,2) -> -5816.68
B130: WEATHER-SENSITIVE THERMS | C130: =SUM(D130:I130) -> 0 | D130: 0 | E130: 0
B131: WEATHER-SENSITIVE RATE | D131: =D59 -> 33.371 | E131: =I211 -> 22.15704777
B132: WEATHER-SENSITIVE REVENUE | C132: =SUM(D132:I132) -> 0 | D132: =ROUND(D130*D131/100,2) -> 0 | E132: =ROUND(E130*E131/100,2) -> 0
B134: TOTAL UNBILLED THERM ADJ | C134: =IF(ROUND(SUM(D134:I134),3)<>ROUND(C126+C130,3),#VALUE!,SUM(D134:I134)) -> 46442 | D134: =D126+D130 -> 72164 | E134: =E126+E130 -> -25722
B135: TOTAL UNBILLED REVENUE ADJ | C135: =IF(ROUND(SUM(D135:I135),3)<>ROUND(C128+C132,3),#VALUE!,SUM(D135:I135)) -> 18265.17 | D135: =D128+D132 -> 24081.85 | E135: =E128+E132 -> -5816.68
B136: WEATHER NORMALIZATION ADJ
B137: WEATHER-SENSITIVE THERMS | C137: =SUM(D137:I137) -> -756715 | D137: -619682 | E137: -137033
B138: WEATHER-SENSITIVE RATE | D138: =D127 -> 33.371 | E138: =I211 -> 22.15704777
B139: WEATHER-SENSITIVE REVENUE | C139: =SUM(D139:I139) -> -237156.55 | D139: =ROUND(D137*D138/100,2) -> -206794.08 | E139: =ROUND(E137*E138/100,2) -> -30362.47
B140: OTHER ADJUSTMENTS
B142: TOTAL ADJUSTMENT REVENUE | C142: =IF(ROUND(SUM(D142:I142),3)<>ROUND(C135+C139+C140,3),#VALUE!,SUM(D142:I142)) -> -218891.38 | D142: =D135+D139+D140 -> -182712.23 | E142: -36179.15 | F142: 0 | G142: 0 | H142: 0 | I142: 0
B143: =B121 -> TOTAL BASE TARIFF REVENUE | C143: =SUM(D143:I143) -> 47629788.33 | D143: =D121 -> 39564053.25 | E143: 7464081.24 | F143: 0.02 | G143: 501369.38 | H143: 26284.4 | I143: 74000.04
B145: TOTAL PRESENT REVENUE | C145: =IF(ROUND(SUM(D145:I145),3)<>ROUND(C142+C143,3),#VALUE!,SUM(D145:I145)) -> 47410896.95 | D145: =D142+D143 -> 39381341.02 | E145: 7427902.09 | F145: 0.02 | G145: 501369.38 | H145: 26284.4 | I145: 74000.04
A149: =A2 -> Effective September 1, 2024
H150: ALERIS | I150: CLEARWATER
D151: GEN SERVICE | E151: LRG GEN SVC | F151: INTERRUPTIBLE | G151: TRANSPORT | H151: TRANSPORT | I151: TRANSPORT
C152: TOTAL | D152: SCHEDULE 101 | E152: SCHEDULE 111 | F152: SCHEDULE 131 | G152: SCHEDULE 146 | H152: SCHEDULE 147 | I152: SCHEDULE 159
B153: PROPOSED REVENUE
B154: =UPPER(CHOOSE(Base1_Billing2,$N$9,$N$10))&" REVENUE" -> BASE TARIFF REVENUE
B155: BASIC CHARGE | C155: =SUM(D155:I155) -> 21689380.04 | D155: =D48*D74 -> 21593780 | E155: =E48*E74 -> 0 | F155: 0 | G155: 21600 | H155: 0 | I155: 74000.04
B156: MONTHLY MINIMUM | C156: 1333549.67 | D156: =D49*D75 -> 0 | E156: 1333549.67 | F156: 0 | G156: ='Big Schedules'!Z11 -> 0 | H156: 0 | I156: 0
B157: BLOCK 1 | C157: 18436473.35 | D157: =ROUND(D31*D77/100,2) -> 17930419.55 | E157: 0 | F157: 0.02 | G157: 479769.38 | H157: 26284.4 | I157: 0
B158: BLOCK 2 | C158: 2758927.71 | D158: =ROUND(D32*D78/100,2) -> 0 | E158: 2758927.71 | F158: 0 | G158: 0 | H158: 0 | I158: 0
B159: BLOCK 3 | C159: 2730293.09 | D159: 0 | E159: 2730293.09 | F159: 0 | G159: 0 | H159: 0 | I159: 0
B160: BLOCK 4 | C160: 642648.95 | D160: 0 | E160: 642648.95 | F160: 0 | G160: 0 | H160: 0 | I160: 0
B161: BLOCK 5 | C161: 0 | D161: 0 | E161: 0 | F161: 0 | G161: 0 | H161: 0 | I161: 0
B162: ANNUAL MINIMUM | C162: 0
B164: SUBTOTAL | C164: =IF(ROUND(SUM(D164:I164),3)<>ROUND(SUM(C155:C162),3),#VALUE!,SUM(D164:I164)) -> 47591272.81 | D164: =SUM(D155:D163) -> 39524199.55 | E164: 7465419.42 | F164: 0.02 | G164: 501369.38 | H164: 26284.4 | I164: 74000.04
B165: NET SHIFTING ADJUSTMENT
B167: SUBTOTAL | C167: =SUM(D167:I167) -> 47591272.81 | D167: =D164+D165 -> 39524199.55 | E167: 7465419.42 | F167: 0.02 | G167: =G164+G165 -> 501369.38 | H167: 26284.4 | I167: 74000.04
B168: ADJUST TO ACTUAL | C168: =SUM(D168:I168) -> 0 | D168: =ROUND(D41*D83/100,2) -> 0 | E168: 0 | F168: 0 | G168: 0 | H168: 0 | I168: 0
B170: ="TOTAL "&UPPER(CHOOSE(Base1_Billing2,$N$9,$N$10))&" REVENUE" -> TOTAL BASE TARIFF REVENUE | C170: =IF(ROUND(SUM(D170:I170),3)<>ROUND(C167+C168,3),#VALUE!,SUM(D170:I170)) -> 47591272.81 | D170: =D167+D168 -> 39524199.55 | E170: 7465419.42 | F170: 0.02 | G170: =G167+G168 -> 501369.38 | H170: 26284.4 | I170: 74000.04
B172: ADJUSTMENT REVENUE
B173: UNBILLED REVENUE ADJUSTMENT
B174: BASE LOAD THERMS | C174: =SUM(D174:I174) -> 46442 | D174: =D126 -> 72164 | E174: =E126 -> -25722
B175: BASE LOAD RATE | D175: =D77 -> 25.605 | E175: =E221 -> 23.37030081
B176: BASE LOAD REVENUE | C176: =SUM(D176:I176) -> 12466.28 | D176: =ROUND(D174*D175/100,2) -> 18477.59 | E176: =ROUND(E174*E175/100,2) -> -6011.31
B178: WEATHER-SENSITIVE THERMS | C178: =SUM(D178:I178) -> 0 | D178: =D130 -> 0 | E178: =E130 -> 0
B179: WEATHER-SENSITIVE RATE | D179: =D77 -> 25.605 | E179: =I221 -> 22.89846548
B180: WEATHER-SENSITIVE REVENUE | C180: =SUM(D180:I180) -> 0 | D180: =ROUND(D178*D179/100,2) -> 0 | E180: =ROUND(E178*E179/100,2) -> 0
B182: TOTAL UNBILLED THERM ADJ | C182: =C174+C178 -> 46442 | D182: =D174+D178 -> 72164 | E182: =E174+E178 -> -25722
B183: TOTAL UNBILLED REVENUE ADJ | C183: =C176+C180 -> 12466.28 | D183: =D176+D180 -> 18477.59 | E183: =E176+E180 -> -6011.31
B184: WEATHER NORMALIZATION ADJ
B185: WEATHER-SENSITIVE THERMS | C185: =SUM(D185:I185) -> -756715 | D185: =D137 -> -619682 | E185: =E137 -> -137033
B186: WEATHER-SENSITIVE RATE | D186: =D179 -> 25.605 | E186: =E179 -> 22.89846548
B187: WEATHER-SENSITIVE REVENUE | C187: =SUM(D187:I187) -> -190048.03 | D187: =ROUND(D185*D186/100,2) -> -158669.58 | E187: =ROUND(E185*E186/100,2) -> -31378.45
B188: OTHER ADJUSTMENTS
B190: TOTAL ADJUSTMENT REVENUE | C190: =SUM(D190:I190) -> -177581.75 | D190: =D187+D183 -> -140191.99 | E190: -37389.76 | F190: 0 | G190: =G187+G183 -> 0 | H190: 0 | I190: 0
B191: =B170 -> TOTAL BASE TARIFF REVENUE | C191: =SUM(D191:I191) -> 47591272.81 | D191: =D170 -> 39524199.55 | E191: =E170 -> 7465419.42 | F191: 0.02 | G191: =G170 -> 501369.38 | H191: 26284.4 | I191: 74000.04
B192: TOTAL PROPOSED REVENUE | C192: =SUM(D192:I192) -> 47413691.06 | D192: =D190+D191 -> 39384007.56 | E192: =E190+E191 -> 7428029.66 | F192: 0.02 | G192: =G190+G191 -> 501369.38 | H192: 26284.4 | I192: 74000.04
B193: TOTAL PRESENT REVENUE | C193: =SUM(D193:I193) -> 47410896.95 | D193: =D145 -> 39381341.02 | E193: =E145 -> 7427902.09 | F193: 0.02 | G193: =G145 -> 501369.38 | H193: 26284.4 | I193: 74000.04
B195: TOTAL INCREASED REVENUE | C195: =SUM(D195:I195) -> 2794.11 | D195: =D192-D193 -> 2666.54 | E195: =E192-E193 -> 127.57 | F195: =F192-F193 -> 0 | G195: =G192-G193 -> 0 | H195: 0 | I195: 0
B196: PERCENT REVENUE INCREASE | C196: =C195/C193 -> 5.893391983e-05 | D196: 6.771074653e-05 | E196: 1.717443209e-05 | F196: =F195/F193 -> 0 | G196: 0 | H196: 0 | I196: 0
D200: TOTAL | E200: TOTAL | F200: BASE LOAD | G200: BASE LOAD | H200: WTHR-SENS. | I200: WTHR-SENS.
C201: RATES | D201: THERMS | E201: REVENUE | F201: THERMS(1) | G201: REVENUE | H201: THERMS | I201: REVENUE
B203: PRESENT BASELOAD AND WEATHER-SENSITIVE RATE
B204: SCHEDULE 111
B205: 0-200 THERMS | C205: =E59 -> 0 | D205: =E8 -> 3283296.172 | E205: =C205*D205/100 -> 0 | F205: =MIN(D205,F210) -> 3283296.172 | G205: =F205*C205/100 -> 0 | H205: =D205-F205 -> 0 | I205: =H205*C205/100 -> 0
B206: 201-1,000 THERMS | C206: =E60 -> 32.368 | D206: =E9 -> 8247668.847 | E206: =C206*D206/100 -> 2669605.452 | F206: =MIN(F210-F205,D206) -> 8247668.847 | G206: =F206*C206/100 -> 2669605.452 | H206: =D206-F206 -> 0 | I206: =H206*C206/100 -> 0
B207: 1,001-10,000 THERMS | C207: =E61 -> 23.575 | D207: =E10 -> 11206259.6 | E207: =C207*D207/100 -> 2641875.7 | F207: =MIN(F210-F205-F206,D207) -> 360679.9812 | G207: =F207*C207/100 -> 85030.30556 | H207: =D207-F207 -> 10845579.62 | I207: =H207*C207/100 -> 2556845.395
B208: OVER 10,000 THERMS | C208: =E62 -> 17.764 | D208: =E11 -> 3500647.971 | E208: =C208*D208/100 -> 621855.1056 | F208: =MIN(F210-F205-F206-F207,D208) -> 0 | G208: =F208*C208/100 -> 0 | H208: =D208-F208 -> 3500647.971 | I208: =H208*C208/100 -> 621855.1056
B210: TOTAL | D210: =SUM(D205:D208) -> 26237872.59 | E210: =SUM(E205:E208) -> 5933336.258 | F210: =635*E26 -> 11891645 | G210: =SUM(G205:G208) -> 2754635.758 | H210: =SUM(H205:H208) -> 14346227.59 | I210: =SUM(I205:I208) -> 3178700.5
B211: AVERAGE RATE | E211: =E210/D210*100 -> 22.61363317 | G211: =G210/F210*100 -> 23.16446344 | I211: =I210/H210*100 -> 22.15704777
B213: PROPOSED BASELOAD AND WEATHER-SENSITIVE RATE
B214: SCHEDULE 111
B215: 0-200 THERMS | C215: =E77 -> 0 | D215: =E31 -> 3283296.172 | E215: =C215*D215/100 -> 0 | F215: =MIN(D215,F220) -> 3283296.172 | G215: =F215*C215/100 -> 0 | H215: =D215-F215 -> 0 | I215: =H215*C215/100 -> 0
B216: 201-1,000 THERMS | C216: =E78 -> 33.451 | D216: =E32 -> 8247668.847 | E216: =C216*D216/100 -> 2758927.706 | F216: =MIN(F220-F215,D216) -> 8247668.847 | G216: =F216*C216/100 -> 2758927.706 | H216: =D216-F216 -> 0 | I216: =H216*C216/100 -> 0
B217: 1,000-10,000 THERMS | C217: =E79 -> 24.364 | D217: =E33 -> 11206259.6 | E217: =C217*D217/100 -> 2730293.089 | F217: =MIN(F220-F215-F216,D217) -> 360679.9812 | G217: =F217*C217/100 -> 87876.07061 | H217: =D217-F217 -> 10845579.62 | I217: =H217*C217/100 -> 2642417.018
B218: OVER 10,000 THERMS | C218: =E80 -> 18.358 | D218: =E34 -> 3500647.971 | E218: =C218*D218/100 -> 642648.9545 | F218: =MIN(F220-F215-F216-F217,D218) -> 0 | G218: =F218*C218/100 -> 0 | H218: =D218-F218 -> 3500647.971 | I218: =H218*C218/100 -> 642648.9545
B220: TOTAL | D220: =SUM(D215:D218) -> 26237872.59 | E220: =SUM(E215:E218) -> 6131869.749 | F220: =F210 -> 11891645 | G220: =SUM(G215:G218) -> 2846803.777 | H220: =SUM(H215:H218) -> 14346227.59 | I220: =SUM(I215:I218) -> 3285065.973
B221: AVERAGE RATE | E221: =E220/D220*100 -> 23.37030081 | G221: =G220/F220*100 -> 23.93952878 | I221: =I220/H220*100 -> 22.89846548
B224: (1) Base load per bill for Schedule 111 is multiplied by total billings from JDM-G-1
B225: ="636 X "&TEXT(E26,"#,##0")&" = "&TEXT(F210,"#,##0") -> 636 X 18,727 = 11,891,645

Sheet Rate Design
A1: PRESENT RATES | D1: 1 | E1: 2 | F1: 3 | G1: 4 | K1: Tiers - used for bill comparisons
C2: TOTAL | D2: SCH. 101 | E2: SCH. 111,112 | F2: SCH. 131,132 | G2: SCH. 146 | I2: Range Name | K2: SCH. 101 | L2: SCH. 111,112 | M2: SCH. 131,132 | N2: SCH. 146
B3: Base Tariff Rates
A4: 1 | B4: BASIC CHARGE | D4: 15 | G4: 300
A5: 2 | B5: MONTHLY MINIMUM | D5: 0 | E5: 81.74
A6: 3 | B6: BLOCK 1 PER THERM | D6: 33.371 | E6: 0 | F6: 20.379 | G6: 12.232 | K6: 9999999 | L6: 200 | M6: 9999999 | N6: 9999999
A7: 4 | B7: BLOCK 2 PER THERM | D7: 0 | E7: 32.368 | K7: 9999999 | L7: 1000 | M7: 9999999 | N7: 9999999
A8: 5 | B8: BLOCK 3 PER THERM | D8: 0 | E8: 23.575 | I8: Rates_Base_Present | K8: 9999999 | L8: 10000 | M8: 9999999 | N8: 9999999
A9: 6 | B9: BLOCK 4 PER THERM | D9: 0 | E9: 17.764 | K9: 9999999 | L9: 9999999 | M9: 9999999 | N9: 9999999
A10: 7 | B10: BLOCK 5 PER THERM | K10: 9999999 | L10: 9999999 | M10: 9999999 | N10: 9999999
K11: 1st block rate | L11: =((E5+(E6/100)*200)/2) -> 40.87
B12: Billing Rates | D12: =IF(D13<>'Pres & Prop Rev'!D$5,#VALUE!,"") ->  | E12: =IF(E13<>'Pres & Prop Rev'!E$5,#VALUE!,"") ->  | F12: =IF(F13<>'Pres & Prop Rev'!F$5,#VALUE!,"") ->  | G12: =IF(G13<>'Pres & Prop Rev'!G$5,#VALUE!,"") ->  | K12: check | L12: =L6*L11/100-(L6*E6/100+E5) -> 0
D13: SCHEDULE 101 | E13: SCH. 111&112 | F13: SCH. 131&132 | G13: SCHEDULE 146
A14: 1 | B14: BASIC CHARGE | D14: =D4 -> 15 | E14: 0 | F14: 0 | G14: 300
A15: 2 | B15: MONTHLY MINIMUM | D15: 0 | E15: 81.74 | F15: 0 | G15: 0
A16: 3 | B16: BLOCK 1 PER THERM | D16: =D6+44.308+13.163-1.02-1.567+4.903 -> 93.158 | E16: =E6+44.308+13.163+0.381-0.811+2.626 -> 59.667 | F16: =F6+35.07-0.811+2.626 -> 57.264 | G16: =G6-0.365 -> 11.867 | K16: =K6 -> 9999999 | L16: 200 | M16: 9999999 | N16: 9999999
A17: 4 | B17: BLOCK 2 PER THERM | E17: =E7+44.308+13.163+0.381-0.811+2.626 -> 92.035 | K17: 9999999 | L17: 1000 | M17: 9999999 | N17: 9999999
A18: 5 | B18: BLOCK 3 PER THERM | E18: =E8+44.308+13.163+0.381-0.811+2.626 -> 83.242 | I18: Rates_Billing_Present | K18: 9999999 | L18: 10000 | M18: 9999999 | N18: 9999999
A19: 6 | B19: BLOCK 4 PER THERM | E19: =E9+44.308+13.163+0.381-0.811+2.626 -> 77.431 | K19: =K9 -> 9999999 | L19: 9999999 | M19: 9999999 | N19: 9999999
A20: 7 | B20: BLOCK 5 PER THERM | D20: =D10 -> 0 | K20: 9999999 | L20: 9999999 | M20: 9999999 | N20: 9999999
K21: 1st block rate | L21: =((E15+E16/100*200)/2) -> 100.537
A22: PROPOSED RATES | K22: check | L22: =L16*L21/100-(L16*E16/100+E15) -> 0
B24: Base Tariff Rates | D24: =IF(D25<>'Pres & Prop Rev'!D$5,#VALUE!,"") ->  | E24: =IF(E25<>'Pres & Prop Rev'!E$5,#VALUE!,"") ->  | F24: =IF(F25<>'Pres & Prop Rev'!F$5,#VALUE!,"") ->  | G24: =IF(G25<>'Pres & Prop Rev'!G$5,#VALUE!,"") -> 
D25: SCHEDULE 101 | E25: SCH. 111&112 | F25: SCH. 131&132 | G25: SCHEDULE 146
A26: 1 | B26: BASIC CHARGE | D26: =IF(D4>0,ROUND(D63,2),0) -> 20 | E26: =IF(E4>0,ROUND(E63,2),0) -> 0 | F26: =IF(F4>0,ROUND(F63,2),0) -> 0 | G26: =IF(G4>0,ROUND(G63,2),0) -> 300
A27: 2 | B27: MONTHLY MINIMUM | D27: =IF(D5>0,ROUND(D63,2),0) -> 0 | E27: =IF(E5>0,ROUND(E63,2),0) -> 71.21 | F27: =IF(F5>0,ROUND(F63,2),0) -> 0 | G27: =IF(G5>0,ROUND(G63,2),0) -> 0
A28: 2 | B28: BLOCK 1 PER THERM | D28: =ROUND(D82,3) -> 25.605 | E28: =ROUND(E82,3) -> 0 | F28: =ROUND(F82,3) -> 20.379 | G28: =ROUND(G82,3) -> 12.232 | K28: 9999999 | L28: 200 | M28: 9999999 | N28: 9999999
A29: 3 | B29: BLOCK 2 PER THERM | D29: =ROUND(D83,3) -> 0 | E29: =ROUND(E83,3) -> 33.451 | F29: 0 | G29: 0 | K29: 9999999 | L29: 1000 | M29: 9999999 | N29: 9999999
A30: 4 | B30: BLOCK 3 PER THERM | D30: 0 | E30: =ROUND(E84,3) -> 24.364 | F30: 0 | G30: 0 | I30: Rates_Base_Proposed | K30: 9999999 | L30: 10000 | M30: 9999999 | N30: 9999999
A31: 5 | B31: BLOCK 4 PER THERM | D31: =ROUND(D85,3) -> 0 | E31: =ROUND(E85,3) -> 18.358 | F31: 0 | G31: 0 | K31: 9999999 | L31: 9999999 | M31: 9999999 | N31: 9999999
A32: 6 | B32: BLOCK 5 PER THERM | D32: 0 | E32: 0 | F32: 0 | G32: 0 | K32: 9999999 | L32: 9999999 | M32: 9999999 | N32: 9999999
H33: 3.106 | K33: 1st block rate | L33: =(E27+E28/100*200)/2 -> 35.605 | O33: =E27/L28+(E28/100) -> 0.35605
B34: Billing Rates | D34: =D28/D6-1 -> -0.2327170298 | E34: =IF(E35<>'Pres & Prop Rev'!E$5,#VALUE!,"") ->  | F34: =IF(F35<>'Pres & Prop Rev'!F$5,#VALUE!,"") ->  | G34: =IF(G35<>'Pres & Prop Rev'!G$5,#VALUE!,"") ->  | H34: 3.796 | K34: check | L34: =L28*L33/100-(L28*E28/100+E27) -> 0
D35: SCHEDULE 101 | E35: SCH. 111&112 | F35: SCH. 131&132 | G35: SCHEDULE 146 | K35: Basic Charge Calc | L35: =E5+(D26-D4)+(((D28-D6)*192)/100) -> 71.82928
A36: 1 | B36: BASIC CHARGE | D36: =D26 -> 20 | E36: 0 | F36: 0 | G36: 300
A37: 2 | B37: MONTHLY MINIMUM | D37: 0 | E37: 71.21 | F37: 0 | G37: 0
A38: 2 | B38: BLOCK 1 PER THERM | D38: =D28+44.308+13.163-1.02-1.567+4.903 -> 85.392 | E38: =E28+44.308+13.163+0.381-0.811+2.626 -> 59.667 | F38: =F28+35.07-0.811+2.626 -> 57.264 | G38: =G28-0.365 -> 11.867 | K38: =K28 -> 9999999 | L38: 200 | M38: 9999999 | N38: 9999999
A39: 3 | B39: BLOCK 2 PER THERM | E39: =E29+44.308+13.163+0.381-0.811+2.626 -> 93.118 | K39: 9999999 | L39: 1000 | M39: 9999999 | N39: 9999999
A40: 4 | B40: BLOCK 3 PER THERM | E40: =E30+44.308+13.163+0.381-0.811+2.626 -> 84.031 | I40: Rates_Billing_Proposed | K40: 9999999 | L40: 10000 | M40: 9999999 | N40: 9999999
A41: 5 | B41: BLOCK 4 PER THERM | E41: =E31+44.308+13.163+0.381-0.811+2.626 -> 78.025 | K41: 9999999 | L41: 9999999 | M41: 9999999 | N41: 9999999
A42: 6 | B42: BLOCK 5 PER THERM | D42: =D32 -> 0 | E42: 0 | K42: 9999999 | L42: 9999999 | M42: 9999999 | N42: 9999999
K43: 1st block rate | L43: =(E37+E38/100*200)/2 -> 95.272
K44: check | L44: =L38*L43/100-(L38*E38/100+E37) -> 0
B47: Proposed Rate Workup - from Pres & Prop Rev tab
B49: THERMS
B50: BLOCK 1 | C50: =SUM(D50:G50) -> 77232568.48 | D50: ='Pres & Prop Rev'!D31 -> 70027024.2 | E50: ='Pres & Prop Rev'!E31 -> 3283296.172 | F50: ='Pres & Prop Rev'!F31 -> 0.1 | G50: ='Pres & Prop Rev'!G31 -> 3922248
B51: BLOCK 2 | C51: 8247668.847 | D51: ='Pres & Prop Rev'!D32 -> 0 | E51: ='Pres & Prop Rev'!E32 -> 8247668.847 | F51: ='Pres & Prop Rev'!F32 -> 0 | G51: ='Pres & Prop Rev'!G32 -> 0
B52: BLOCK 3 | C52: 11206259.6 | D52: ='Pres & Prop Rev'!D33 -> 0 | E52: ='Pres & Prop Rev'!E33 -> 11206259.6 | F52: ='Pres & Prop Rev'!F33 -> 0 | G52: ='Pres & Prop Rev'!G33 -> 0
B53: BLOCK 4 | C53: 3500647.971 | D53: ='Pres & Prop Rev'!D34 -> 0 | E53: ='Pres & Prop Rev'!E34 -> 3500647.971 | F53: ='Pres & Prop Rev'!F34 -> 0 | G53: ='Pres & Prop Rev'!G34 -> 0
B54: BLOCK 5 | C54: 0 | D54: ='Pres & Prop Rev'!D35 -> 0 | E54: ='Pres & Prop Rev'!E35 -> 0 | F54: ='Pres & Prop Rev'!F35 -> 0 | G54: ='Pres & Prop Rev'!G35 -> 0
B55: ADJ. TO ACTUAL | C55: 0 | D55: ='Pres & Prop Rev'!D41 -> 0 | E55: ='Pres & Prop Rev'!E41 -> 0 | F55: ='Pres & Prop Rev'!F41 -> 0 | G55: ='Pres & Prop Rev'!G41 -> 0
B56: WEATHER & U/B THERMS | C56: -710273 | D56: ='Pres & Prop Rev'!D44 -> -547518 | E56: ='Pres & Prop Rev'!E44 -> -162755 | F56: ='Pres & Prop Rev'!F44 -> 0 | G56: ='Pres & Prop Rev'!G44 -> 0 | H56: Proposed rates:
B57: TOTAL PROFORMA THERMS | C57: =IF(ROUND(SUM(D57:G57),3)<>ROUND(SUM(C50:C56),3),#VALUE!,SUM(D57:G57)) -> 99476871.89 | D57: =SUM(D50:D56) -> 69479506.2 | E57: =SUM(E50:E56) -> 26075117.59 | F57: =SUM(F50:F56) -> 0.1 | G57: =SUM(G50:G56) -> 3922248 | H57: same as current
B58: TOTAL BILLS | D58: =SUM('Pres & Prop Rev'!D48:D49) -> 1079689 | E58: =SUM('Pres & Prop Rev'!E48:E49) -> 18727 | F58: =SUM('Pres & Prop Rev'!F48:F49) -> 0 | G58: =SUM('Pres & Prop Rev'!G48:G49) -> 72 | H58: diff than current
H59: Formulas to copy
B60: Proposed Revenue | C60: =SUM(D60:G60) -> 47314000 | D60: =ROR!D46 -> 39385000 | E60: =ROR!E46 -> 7428000 | F60: =ROR!F46 -> 0.003234364496 | G60: =ROR!G46 -> 501000 | H60: FLOOR | I60: CEILING | J60: OTHER
B61: Targeted Rate Increase | C61: =ROR!C47 -> 6.341020059e-05 | D61: =ROR!D47 -> 7.61768515e-05 | E61: =ROR!E47 -> -2.220446049e-16 | F61: =ROR!F47 -> 0 | G61: =ROR!G47 -> 4.440892099e-16
B62: Present Basic/Min Charge | D62: =D4 -> 15 | E62: =E4+E5 -> 81.74 | F62: =F4+F5 -> 0 | G62: =G4 -> 300
B63: BASIC/MIN CHARGE | D63: 20 | E63: =D63+(200*('Appendix F Pg 6'!R20)) -> 71.21 | G63: 300 | H63: =FLOOR(H62*(1+H$61),$H64) -> 0 | I63: =CEILING(I62*(1+I$61),$I64) -> 0 | J63: 1.05
B64: % D in Basic Charge | D64: =IF(D62,D63/D62-1,0) -> 0.3333333333 | E64: =IF(E62,E63/E62-1,0) -> -0.1288230976 | F64: =IF(F62,F63/F62-1,0) -> 0 | G64: =IF(G62,G63/G62-1,0) -> 0 | H64: 0.05 | I64: 0.05
B65: Basic Charge Revenue | C65: =SUM(D65:G65) -> 22948929.67 | D65: =D58*D63 -> 21593780 | E65: =E58*E63 -> 1333549.67 | F65: =F58*F63 -> 0 | G65: =(G58*G63)+'Pres & Prop Rev'!G156 -> 21600
B67: Present Block 1 Rate | D67: =D6 -> 33.371 | E67: =E6 -> 0 | F67: =F6 -> 20.379 | G67: 12.232
B68: Present Block 2 Rate | D68: 0 | E68: 32.368 | F68: 0 | G68: 0
B69: Present Block 3 Rate | D69: 0 | E69: 23.575 | F69: 0 | G69: 0
B70: Present Block 4 Rate | D70: =D9 -> 0 | E70: 17.764 | F70: 0 | G70: 0
B71: Present Block 5 Rate | D71: 0 | E71: 0 | F71: 0 | G71: 0
B73: 1) Flat Rate Increase | D73: 1 | E73: 1 | F73: 1 | G73: 1
B74: 2) % Rate Increase | D74: -0.232674327 | E74: 0.03344937299 | F74: 0 | G74: 0
B75: Method ---> | D75: 2 | E75: 2 | F75: 2 | G75: 2
A77: Calculated | B77: BLOCK 1 PER THERM | D77: =CHOOSE(D$75,D67+D$73,D67*(1+D$74)) -> 25.60642503 | E77: =CHOOSE(E$75,E67+E$73,E67*(1+E$74)) -> 0 | F77: =CHOOSE(F$75,F67+F$73,F67*(1+F$74)) -> 20.379 | G77: =CHOOSE(G$75,G67+G$73,G67*(1+G$74)) -> 12.232
B78: BLOCK 2 PER THERM | D78: 0 | E78: =CHOOSE(E$75,E68+E$73,E68*(1+E$74+E76)) -> 33.45068931 | F78: 0 | G78: 0
B79: BLOCK 3 PER THERM | D79: 0 | E79: =CHOOSE(E$75,E69+E$73,E69*(1+E$74+E76)) -> 24.36356897 | F79: 0 | G79: 0
B80: BLOCK 4 PER THERM | D80: 0 | E80: =CHOOSE(E$75,E70+E$73,E70*(1+E$74)) -> 18.35819466 | F80: 0 | G80: 0
B81: BLOCK 5 PER THERM | D81: 0 | E81: 0 | F81: 0 | G81: 0
A82: Input | B82: BLOCK 1 PER THERM | D82: =D77-0.001 -> 25.60542503 | E82: =E67 -> 0 | F82: =F77 -> 20.379 | G82: =G77 -> 12.232 | L82: =D63+((200*D82)/100) -> 71.21085007 | M82: =E63+((200*E82)/100) -> 71.21 | N82: =L82-M82 -> 0.0008500692571
B83: BLOCK 2 PER THERM | D83: =D78 -> 0 | E83: =E78 -> 33.45068931 | F83: =F78 -> 0 | G83: 0
B84: BLOCK 3 PER THERM | D84: 0 | E84: =E79 -> 24.36356897 | F84: 0 | G84: 0
B85: BLOCK 4 PER THERM | D85: 0 | E85: =E80 -> 18.35819466 | F85: 0 | G85: 0
B86: BLOCK 5 PER THERM | D86: 0 | E86: 0 | F86: 0 | G86: =G81 -> 0
B87: Blocks 1-5 Revenue | C87: =SUM(D87:G87) -> 24542289.22 | D87: =SUMPRODUCT(D50:D54,D82:D86)/100 -> 17930717.19 | E87: =SUMPRODUCT(E50:E54,E82:E86)/100 -> 6131802.636 | F87: =SUMPRODUCT(F50:F54,F82:F86)/100 -> 0.020379 | G87: =SUMPRODUCT(G50:G54,G82:G86)/100 -> 479769.3754
B88: Adj. to Actual Revenue | C88: =SUM(D88:G88) -> 0 | D88: ='Pres & Prop Rev'!D168 -> 0 | E88: ='Pres & Prop Rev'!E168 -> 0 | F88: ='Pres & Prop Rev'!F168 -> 0 | G88: ='Pres & Prop Rev'!G168 -> 0
B89: Weather & U/B Revenue | C89: =SUM(D89:G89) -> -177581.75 | D89: ='Pres & Prop Rev'!D190 -> -140191.99 | E89: ='Pres & Prop Rev'!E190 -> -37389.76 | F89: ='Pres & Prop Rev'!F190 -> 0 | G89: ='Pres & Prop Rev'!G190 -> 0
B91: Revenue Remaining | C91: =IF(ROUND(C60-C65-SUM(C87:C89),3)<>ROUND(SUM(D91:G91),3),#VALUE!,SUM(D91:G91)) -> 362.8617374 | D91: =D60-D65-SUM(D87:D89) -> 694.800242 | E91: =E60-E65-SUM(E87:E89) -> 37.454 | F91: =F60-F65-SUM(F87:F89) -> -0.0171446355 | G91: =G60-G65-SUM(G87:G89) -> -369.37536
B92: Revenue Remaining - ¢/Th | C92: =C91/C57*100 -> 0.0003647699515 | D92: =D91/D57*100 -> 0.001000007455 | E92: =E91/E57*100 -> 0.0001436388537 | F92: =F91/F57*100 -> -17.1446355 | G92: =G91/G57*100 -> -0.009417440203
B93: check - < $4k is rounding | C93: =SUM(D93:G93) -> 230.5182626 | D93: =D60-'Pres & Prop Rev'!D192-D91 -> 297.6365236 | E93: =E60-'Pres & Prop Rev'!E192-E91 -> -67.114 | F93: =F60-'Pres & Prop Rev'!F192-F91 -> 0.000379 | G93: =G60-'Pres & Prop Rev'!G192-G91 -> -0.004639999999
B95: Proposed Target | C95: =SUM(D95:G95) -> 47314000 | D95: =D60 -> 39385000 | E95: =E60 -> 7428000 | F95: =F60 -> 0.003234364496 | G95: =G60 -> 501000
B96: Proposed Actual | C96: ='Pres & Prop Rev'!C192-SUM('Pres & Prop Rev'!H192:I192) -> 47313406.62 | D96: ='Pres & Prop Rev'!D192 -> 39384007.56 | E96: ='Pres & Prop Rev'!E192 -> 7428029.66 | F96: ='Pres & Prop Rev'!F192 -> 0.02 | G96: ='Pres & Prop Rev'!G192 -> 501369.38
C97: =SUM(D97:G97) -> -593.38 | D97: =D96-D95 -> -992.4367656 | E97: =E96-E95 -> 29.66 | F97: =F96-F95 -> 0.0167656355 | G97: =G96-G95 -> 369.38
B98: Rate D Check
B99: Basic/Min Charge | C99: =SUM('Pres & Prop Rev'!C155:C156)/SUM('Pres & Prop Rev'!C106:C107)-1 -> 0.2918495722 | D99: =SUM('Pres & Prop Rev'!D155:D156)/SUM('Pres & Prop Rev'!D106:D107)-1 -> 0.3333333333 | E99: =SUM('Pres & Prop Rev'!E155:E156)/SUM('Pres & Prop Rev'!E106:E107)-1 -> -0.1288230976 | F99: =SUM('Pres & Prop Rev'!F155:F156)/SUM('Pres & Prop Rev'!F106:F107)-1 ->  | G99: =SUM('Pres & Prop Rev'!G155:G156)/SUM('Pres & Prop Rev'!G106:G107)-1 -> 0
B100: Adj. to Actual Revenue | C100: ='Pres & Prop Rev'!C168/'Pres & Prop Rev'!C119-1 ->  | D100: ='Pres & Prop Rev'!D168/'Pres & Prop Rev'!D119-1 ->  | E100: ='Pres & Prop Rev'!E168/'Pres & Prop Rev'!E119-1 ->  | F100: ='Pres & Prop Rev'!F168/'Pres & Prop Rev'!F119-1 ->  | G100: ='Pres & Prop Rev'!G168/'Pres & Prop Rev'!G119-1 -> 
B101: Weather & U/B Revenue | C101: ='Pres & Prop Rev'!C190/'Pres & Prop Rev'!C142-1 -> -0.1887220502 | D101: ='Pres & Prop Rev'!D190/'Pres & Prop Rev'!D142-1 -> -0.2327169889 | E101: ='Pres & Prop Rev'!E190/'Pres & Prop Rev'!E142-1 -> 0.03346153793 | F101: ='Pres & Prop Rev'!F190/'Pres & Prop Rev'!F142-1 ->  | G101: ='Pres & Prop Rev'!G190/'Pres & Prop Rev'!G142-1 -> 
B102: Block Therm Charges | C102: =SUM('Pres & Prop Rev'!C157:C161)/SUM('Pres & Prop Rev'!C108:C112)-1 -> -0.1757832183 | D102: =SUM('Pres & Prop Rev'!D157:D161)/SUM('Pres & Prop Rev'!D108:D112)-1 -> -0.2327170297 | E102: =SUM('Pres & Prop Rev'!E157:E161)/SUM('Pres & Prop Rev'!E108:E112)-1 -> 0.03346068406 | F102: =SUM('Pres & Prop Rev'!F157:F161)/SUM('Pres & Prop Rev'!F108:F112)-1 -> 0 | G102: =SUM('Pres & Prop Rev'!G157:G161)/SUM('Pres & Prop Rev'!G108:G112)-1 -> 0
B103: Overall Revenue | C103: ='Pres & Prop Rev'!C192/'Pres & Prop Rev'!C193-1 -> 5.893391983e-05 | D103: ='Pres & Prop Rev'!D192/'Pres & Prop Rev'!D193-1 -> 6.771074653e-05 | E103: ='Pres & Prop Rev'!E192/'Pres & Prop Rev'!E193-1 -> 1.717443209e-05 | F103: ='Pres & Prop Rev'!F192/'Pres & Prop Rev'!F193-1 -> 0 | G103: ='Pres & Prop Rev'!G192/'Pres & Prop Rev'!G193-1 -> 0
B105: Avg. Usage | D105: =D57/D58 -> 64.35140694 | E105: =E57/E58 -> 1392.380925 | F105: =F57/F58 ->  | G105: =G57/G58 -> 54475.66667
B106: Bill Compare: | C106: =INDEX($D$2:$G$2,I106) -> SCH. 101 | F106: =INDEX($D$2:$G$2,J106) -> SCH. 111,112 | I106: 1 | J106: 2
C107: Pres | D107: Prop | E107: % Incr | F107: Pres | G107: Prop | H107: % Incr
B108: 0 | C108: =I$108+MIN($B108,M$109)*I$109/100+MAX(0,MIN($B108-M$109,M$110-M$109))*I$110/100+MAX(0,MIN($B108-M$110,M$111-M$110))*I$111/100+MAX(0,MIN($B108-M$111,M$112-M$111))*I$112/100+MAX(0,$B108-M$113)*I$113/100 -> 15 | D108: =J$108+MIN($B108,N$109)*J$109/100+MAX(0,MIN($B108-N$109,N$110-N$109))*J$110/100+MAX(0,MIN($B108-N$110,N$111-N$110))*J$111/100+MAX(0,MIN($B108-N$111,N$112-N$111))*J$112/100+MAX(0,$B108-N$113)*J$113/100 -> 20 | E108: =D108/C108-1 -> 0.3333333333 | F108: =K$108+MIN($B108,O$109)*K$109/100+MAX(0,MIN($B108-O$109,O$110-O$109))*K$110/100+MAX(0,MIN($B108-O$110,O$111-O$110))*K$111/100+MAX(0,MIN($B108-O$111,O$112-O$111))*K$112/100+MAX(0,E108-O$113)*K$113/100 -> 81.74 | G108: =L$108+MIN($B108,P$109)*L$109/100+MAX(0,MIN($B108-P$109,P$110-P$109))*L$110/100+MAX(0,MIN($B108-P$110,P$111-P$110))*L$111/100+MAX(0,MIN($B108-P$111,P$112-P$111))*L$112/100+MAX(0,$B108-P$113)*L$113/100 -> 71.21 | H108: =G108/F108-1 -> -0.1288230976 | I108: =INDEX(CHOOSE(Base1_Billing2,$D$4:$G$4,$D$14:$G$14),$I$106)+INDEX(CHOOSE(Base1_Billing2,$D$5:$G$5,$D$15:$G$15),$I$106) -> 15 | J108: =INDEX(CHOOSE(Base1_Billing2,$D$26:$G$26,$D$36:$G$36),$I$106)+INDEX(CHOOSE(Base1_Billing2,$D$27:$G$27,$D$37:$G$37),$I$106) -> 20 | K108: =INDEX(CHOOSE(Base1_Billing2,$D$4:$G$4,$D$14:$G$14),$J$106)+INDEX(CHOOSE(Base1_Billing2,$D$5:$G$5,$D$15:$G$15),$J$106) -> 81.74 | L108: =INDEX(CHOOSE(Base1_Billing2,$D$26:$G$26,$D$36:$G$36),$J$106)+INDEX(CHOOSE(Base1_Billing2,$D$27:$G$27,$D$37:$G$37),$J$106) -> 71.21
B109: 61 | C109: 35.35631 | D109: 35.61905 | E109: =D109/C109-1 -> 0.007431205349 | F109: 81.74 | G109: 71.21 | H109: =G109/F109-1 -> -0.1288230976 | I109: =INDEX(CHOOSE(Base1_Billing2,$D6:$G6,$D16:$G16),$I$106) -> 33.371 | J109: =INDEX(CHOOSE(Base1_Billing2,$D28:$G28,$D38:$G38),$I$106) -> 25.605 | K109: =INDEX(CHOOSE(Base1_Billing2,$D6:$G6,$D16:$G16),$J$106) -> 0 | L109: =INDEX(CHOOSE(Base1_Billing2,$D28:$G28,$D38:$G38),$J$106) -> 0 | M109: =INDEX($K6:$N6,$I$106) -> 9999999 | N109: =INDEX($K28:$N28,$I$106) -> 9999999 | O109: =INDEX($K6:$N6,$J$106) -> 200 | P109: =INDEX($K28:$N28,$J$106) -> 200
B110: 70 | C110: 38.3597 | D110: 37.9235 | E110: -0.01137130895 | F110: 81.74 | G110: 71.21 | H110: -0.1288230976 | I110: =INDEX(CHOOSE(Base1_Billing2,$D7:$G7,$D17:$G17),$I$106) -> 0 | J110: =INDEX(CHOOSE(Base1_Billing2,$D29:$G29,$D39:$G39),$I$106) -> 0 | K110: =INDEX(CHOOSE(Base1_Billing2,$D7:$G7,$D17:$G17),$J$106) -> 32.368 | L110: =INDEX(CHOOSE(Base1_Billing2,$D29:$G29,$D39:$G39),$J$106) -> 33.451 | M110: =INDEX($K7:$N7,$I$106) -> 9999999 | N110: =INDEX($K29:$N29,$I$106) -> 9999999 | O110: =INDEX($K7:$N7,$J$106) -> 1000 | P110: =INDEX($K29:$N29,$J$106) -> 1000
B111: 100 | C111: 48.371 | D111: 45.605 | E111: -0.05718302289 | F111: 81.74 | G111: 71.21 | H111: -0.1288230976 | I111: =INDEX(CHOOSE(Base1_Billing2,$D8:$G8,$D18:$G18),$I$106) -> 0 | J111: =INDEX(CHOOSE(Base1_Billing2,$D30:$G30,$D40:$G40),$I$106) -> 0 | K111: =INDEX(CHOOSE(Base1_Billing2,$D8:$G8,$D18:$G18),$J$106) -> 23.575 | L111: =INDEX(CHOOSE(Base1_Billing2,$D30:$G30,$D40:$G40),$J$106) -> 24.364 | M111: =INDEX($K8:$N8,$I$106) -> 9999999 | N111: =INDEX($K30:$N30,$I$106) -> 9999999 | O111: =INDEX($K8:$N8,$J$106) -> 10000 | P111: =INDEX($K30:$N30,$J$106) -> 10000
B112: 200 | C112: 81.742 | D112: 71.21 | E112: -0.1288444129 | F112: 81.74 | G112: 71.21 | H112: -0.1288230976 | I112: =INDEX(CHOOSE(Base1_Billing2,$D9:$G9,$D19:$G19),$I$106) -> 0 | J112: =INDEX(CHOOSE(Base1_Billing2,$D31:$G31,$D41:$G41),$I$106) -> 0 | K112: =INDEX(CHOOSE(Base1_Billing2,$D9:$G9,$D19:$G19),$J$106) -> 17.764 | L112: =INDEX(CHOOSE(Base1_Billing2,$D31:$G31,$D41:$G41),$J$106) -> 18.358 | M112: =INDEX($K9:$N9,$I$106) -> 9999999 | N112: =INDEX($K31:$N31,$I$106) -> 9999999 | O112: =INDEX($K9:$N9,$J$106) -> 9999999 | P112: =INDEX($K31:$N31,$J$106) -> 9999999
B113: 300 | C113: 115.113 | D113: 96.815 | E113: -0.1589568511 | F113: 114.108 | G113: 104.661 | H113: -0.08278998843 | I113: =INDEX(CHOOSE(Base1_Billing2,$D10:$G10,$D20:$G20),$I$106) -> 0 | J113: =INDEX(CHOOSE(Base1_Billing2,$D32:$G32,$D42:$G42),$I$106) -> 0 | K113: =INDEX(CHOOSE(Base1_Billing2,$D10:$G10,$D20:$G20),$J$106) -> 0 | L113: =INDEX(CHOOSE(Base1_Billing2,$D32:$G32,$D42:$G42),$J$106) -> 0 | M113: =INDEX($K10:$N10,$I$106) -> 9999999 | N113: =INDEX($K32:$N32,$I$106) -> 9999999 | O113: =INDEX($K10:$N10,$J$106) -> 9999999 | P113: =INDEX($K32:$N32,$J$106) -> 9999999
B114: 400 | C114: 148.484 | D114: 122.42 | E114: -0.1755340643 | F114: 146.476 | G114: 138.112 | H114: -0.05710150468
B115: 500 | C115: 181.855 | D115: 148.025 | E115: -0.1860273295 | F115: 178.844 | G115: 171.563 | H115: -0.04071145803
B116: 1000 | C116: 348.71 | D116: 276.05 | E116: -0.2083679849 | F116: 340.684 | G116: 338.818 | H116: -0.005477216423
B117: 2000 | C117: 682.42 | D117: 532.1 | E117: -0.220274904 | F117: 576.434 | G117: 582.458 | H117: 0.0104504592
B118: 3000 | C118: 1016.13 | D118: 788.15 | E118: -0.2243610562 | F118: 812.184 | G118: 826.098 | H118: 0.01713158595
B119: 4000 | C119: 1349.84 | D119: 1044.2 | E119: -0.2264268358 | F119: 1047.934 | G119: 1069.738 | H119: 0.02080665385
B120: 5000 | C120: 1683.55 | D120: 1300.25 | E120: -0.2276736658 | F120: 1283.684 | G120: 1313.378 | H120: 0.02313186111
B121: 10000 | C121: 3352.1 | D121: 2580.5 | E121: -0.2301840637 | F121: 2462.434 | G121: 2531.578 | H121: 0.02807953431
B122: 20000 | C122: 6689.2 | D122: 5141 | E122: -0.2314477068 | F122: 4238.834 | G122: 4367.378 | H122: 0.0303253206

Sheet Appendix F Pg 4
A1: AVISTA UTILITIES | V1: This worksheet pulls data from 'Pres & Prop Rev' tab.
A2: IDAHO GAS, CASE NO. AVU-G-23-01
A3: PROPOSED INCREASE BY SERVICE SCHEDULE
A4: 12 MONTHS ENDED JUNE 30, 2022
A5: (000s of Dollars)
A7: Effective September 1, 2023
D8: Base Tariff | F8: Base Tariff | G8: Base | H8: Total Billed | J8: Sch 176 | K8: Total Billed | L8: Percent | N8: Percent
D9: Distribution Revenue | E9: Proposed | F9: Distribution Revenue | G9: Tariff | H9: Revenue | I9: Total | J9: Tax | K9: Revenue | L9: Increase on | N9: Increase on
A10: Line | B10: Type of | C10: Schedule | D10: Under Present | E10: General | F10: Under Proposed | G10: Percent | H10: at Present | I10: General | J10: Rate | K10: at Proposed | L10: Billed GRC | N10: Billed GRC
A11: No. | B11: Service | C11: Number | D11: Rates (1) | E11: Increase | F11: Rates | G11: Increase | H11: Rates (2) | I11: Increase | J11: Credit | K11: Rates (2) | L11: Revenue | N11: Revenue
B12: (a) | C12: (b) | D12: (c) | E12: (d) | F12: (e) | G12: (f) | H12: (g) | I12: (h) | J12: (i) | K12: (i) | L12: (j) | N12: (k)
A14: 1 | B14: General Service | C14: 101 | D14: 38129.50052 | E14: 1251.9405 | F14: 39381.74102 | G14: 0.03283390768 | H14: 79669.2129 | I14: 1251.9405 | J14: 0 | K14: 80921.1534 | L14: 0.016 | N14: 0.016
A15: 2 | B15: Large General Service | C15: 111/112 | D15: 7427.84014 | E15: 0.26195 | F15: 7427.90209 | G15: 3.526597168e-05 | H15: 22929.08056 | I15: 0.26195 | J15: 0 | K15: 22929.34251 | L15: 0 | N15: 1.142435691e-05
A16: 3 | B16: Interruptible Service | C16: 131/132 | D16: 2e-05 | E16: 0 | F16: 2e-05 | G16: 0 | H16: 6e-05 | I16: 0 | J16: 0 | K16: 6e-05 | L16: 0 | N16: 0
A17: 4 | B17: Transportation Service | C17: 146 | D17: 501.36938 | E17: 0 | F17: 501.46938 | G17: 0 | H17: 487.05317 | I17: 0.1 | J17: 0 | K17: 487.15317 | L17: 0 | N17: 0
A18: 5 | B18: Special Contracts | C18: 148 | D18: 100.28444 | E18: 0 | F18: 100.28444 | G18: 0 | H18: 100.28444 | I18: 0 | J18: 0 | K18: 100.28444 | L18: 0 | N18: 0
A19: 6 | B19: Total | D19: =SUM(D14:D18) -> 46158.9945 | E19: =SUM(E14:E18) -> 1252.20245 | F19: 47410.99695 | G19: 0.02712369417 | H19: =SUM(H14:H18) -> 103185.6311 | I19: =SUM(I14:I18) -> 1252.30245 | J19: 0 | K19: =SUM(K14:K18) -> 104437.9336 | L19: 0.012 | N19: 0.0121267972
A22: Effective September 1, 2024 | P22: Sch 197 | R22: Sch 197
D23: Base Tariff | F23: Base Tariff | G23: Base | H23: Total Billed | J23: Sch 176 | K23: Total Billed | L23: Percent | N23: Percent | O23: Total | P23: Percent | Q23: Total | R23: Percent | S23: Total Billed | T23: Percent | U23: Percent
D24: Distribution Revenue | E24: Proposed | F24: Distribution Revenue | G24: Tariff | H24: Revenue | I24: Total | J24: Tax | K24: Revenue | L24: Increase on | N24: Increase on | O24: Sch 197 - 2014 | P24: Increase on | Q24: Sch 197 - 2014 | R24: Increase on | S24: Revenue | T24: Increase | U24: Total Increase
A25: Line | B25: Type of | C25: Schedule | D25: Under Present | E25: General | F25: Under Proposed | G25: Percent | H25: at Present | I25: General | J25: Rate | K25: at Proposed | L25: Billed GRC | N25: Billed GRC | O25: Earnings/DSM | P25: Billed GRC | Q25: Earnings | R25: Billed GRC | S25: at Proposed | T25: on Billed | U25: on Billed
A26: No. | B26: Service | C26: Number | D26: Rates (1) | E26: Increase | F26: Rates | G26: Increase | H26: Rates (2) | I26: Increase | J26: Credit | K26: Rates (2) | L26: Revenue | N26: Revenue | O26: Rebate Expiration (2) | P26: Revenue | Q26: Rebate | R26: Revenue | S26: Rates (2) | T26: Revenue | U26: Revenue (2)
B27: (a) | C27: (b) | D27: (c) | E27: (d) | F27: (e) | G27: (f) | H27: (g) | I27: (h) | J27: (i) | K27: (i) | L27: (j) | N27: (k) | O27: (j) | P27: (k) | Q27: (l) | R27: (m) | S27: (n) | T27: (o) | U27: (o)
A29: 1 | B29: General Service | C29: 101 | D29: ='Pres & Prop Rev'!$D$145/1000 -> 39381.34102 | E29: ='Pres & Prop Rev'!$D$195/1000+0.2 -> 2.86654 | F29: ='Pres & Prop Rev'!$D$192/1000+0.4 -> 39384.40756 | G29: =E29/D29 -> 7.278929376e-05 | H29: 82439.9754 | I29: =E29 -> 2.86654 | J29: ='Sch 177'!E12/1000 -> 0 | K29: =+I29+H29+J29 -> 82442.84194 | L29: =ROUND((I29+J29)/H29,3) -> 0 | N29: =ROUND(E29/H29,3) -> 0 | O29: 0 | P29: =ROUND(O29/H29,3) -> 0 | Q29: 0 | R29: =ROUND(Q29/H29,3) -> 0 | S29: =H29+I29+O29+Q29 -> 82442.84194 | T29: =N29+P29+R29 -> 0 | U29: =(I29+O29+#REF!+P29+#REF!)/H29 ->  | X29: =120/K29 -> 0.001455553899
A30: 2 | B30: Large General Service | C30: 111/112 | D30: ='Pres & Prop Rev'!$E$145/1000 -> 7427.90209 | E30: ='Pres & Prop Rev'!$E$195/1000 -> 0.12757 | F30: ='Pres & Prop Rev'!$E$192/1000 -> 7428.02966 | G30: =E30/D30 -> 1.717443209e-05 | H30: 22928.88276 | I30: =E30 -> 0.12757 | J30: ='Sch 177'!E13/1000 -> 0 | K30: =+I30+H30+J30 -> 22929.01033 | L30: =ROUND((I30+J30)/H30,3) -> 0 | N30: =E30/H30 -> 5.563725077e-06 | O30: 0 | P30: =O30/H30 -> 0 | Q30: 0 | R30: 0 | S30: =H30+I30+O30+Q30 -> 22929.01033 | T30: 5.563725077e-06 | U30: =(I30+O30+#REF!+P30+#REF!)/H30 -> 
A31: 3 | B31: Interruptible Service | C31: 131/132 | D31: ='Pres & Prop Rev'!$F$145/1000 -> 2e-05 | E31: ='Pres & Prop Rev'!$F$195/1000 -> 0 | F31: ='Pres & Prop Rev'!$F$192/1000 -> 2e-05 | G31: 0 | H31: 6e-05 | I31: =E31 -> 0 | J31: 0 | K31: 6e-05 | L31: 0 | N31: =E31/H31 -> 0 | O31: 0 | P31: =O31/H31 -> 0 | Q31: 0 | R31: 0 | S31: =H31+I31+O31+Q31 -> 6e-05 | T31: 0 | U31: =(I31+O31+#REF!+P31+#REF!)/H31 -> 
A32: 4 | B32: Transportation Service | C32: 146 | D32: ='Pres & Prop Rev'!$G$145/1000 -> 501.36938 | E32: ='Pres & Prop Rev'!$G$195/1000 -> 0 | F32: ='Pres & Prop Rev'!$G$192/1000+0.1 -> 501.46938 | G32: 0 | H32: 487.15317 | I32: =E32+0.1 -> 0.1 | J32: ='Sch 177'!E15/1000 -> 0 | K32: 487.25317 | L32: =ROUND((I32+J32)/H32,3) -> 0 | N32: =E32/H32 -> 0 | O32: 0 | P32: =O32/H32 -> 0 | Q32: 0 | R32: 0 | S32: =H32+I32+O32+Q32 -> 487.25317 | T32: 0 | U32: =(I32+O32+#REF!+P32+#REF!)/H32 -> 
A33: 5 | B33: Special Contracts | C33: 148 | D33: =SUM('Pres & Prop Rev'!$H$145:$I$145)/1000 -> 100.28444 | E33: =SUM('Pres & Prop Rev'!$H$195:$I$195)/1000 -> 0 | F33: =SUM('Pres & Prop Rev'!$H$192:$I$192)/1000 -> 100.28444 | G33: 0 | H33: 100.28444 | I33: =E33 -> 0 | J33: 0 | K33: 100.28444 | L33: 0 | N33: =E33/H33 -> 0 | O33: 0 | P33: =O33/H33 -> 0 | Q33: 0 | R33: 0 | S33: =H33+I33+O33+Q33 -> 100.28444 | T33: 0 | U33: =(I33+O33+#REF!+P33+#REF!)/H33 -> 
A34: 6 | B34: Total | D34: ='Pres & Prop Rev'!$C$145/1000 -> 47410.89695 | E34: ='Pres & Prop Rev'!$C$195/1000+0.1 -> 2.89411 | F34: ='Pres & Prop Rev'!$C$192/1000+0.1 -> 47413.79106 | G34: 6.104313958e-05 | H34: =SUM(H29:H33) -> 105956.2958 | I34: =SUM(I29:I33) -> 3.09411 | J34: =SUM(J29:J33) -> 0 | K34: =+I34+H34+J34 -> 105959.3899 | L34: 0 | N34: =E34/H34 -> 2.731418626e-05 | O34: =SUM(O29:O33) -> 0 | P34: =O34/H34 -> 0 | Q34: =SUM(Q29:Q33)+0.4 -> 0.4 | R34: 0 | S34: =SUM(S29:S33) -> 105959.3899 | T34: 2.731418626e-05 | U34: =(I34+O34+#REF!+P34+#REF!)/H34 -> 
D35: =ROUND(D34-SUM(D29:D33),0) -> 0 | E35: =ROUND(E34-SUM(E29:E33),0) -> 0
A37: (1) Excludes Schedule 150 - Purchased Gas Cost Adjustment, Schedule 155 - Gas Rate Adjustment, Schedule 175 - Decoupling & Schedule 191 - DSM
A38: (2) Includes Schedule 150 - Purchased Gas Cost Adjustment, Schedule 155 - Gas Rate Adjustment, Schedule 175 - Decoupling, & Schedule 191 - DSM
D42: =SUM(ROUND(D29:D33,0)) -> 47410 | E42: =SUM(ROUND(E29:E33,0)) -> 3 | F42: =SUM(ROUND(F29:F33,0)) -> 47413
D43: =ROUND(D34,0)-D42 -> 1 | E43: =ROUND(E34,0)-E42 -> 0 | F43: =ROUND(F34,0)-F42 -> 1
H45: Sch 155 Adj to Billed Revenue
G46: Schedule | H46: Therms | I46: Rate | K46: Adjustment
G47: 112 | H47: =ROUND('Rev Runs CY'!O22,0) -> 431644 | I47: 0.13163 | K47: =(H47*-I47)/1000 -> -56.81729972

Sheet COS (hidden)
A1: AVISTA UTILITIES | L1: This worksheet pulls data from 'ROR' tab.
A2: IDAHO GAS, CASE NO. AVU-G-23-01
A3: PRESENT & PROPOSED RATES OF RETURN BY RATE SCHEDULE
A4: 12 MONTHS ENDED JUNE 30, 2022
A6: Not Used
D8: Present Rates | G8: Base | I8: Proposed Rates
D9: Present | E9: Present | G9: Tariff | I9: Proposed | J9: Proposed
A10: Line | B10: Type of | C10: Sch. | D10: Rate of | E10: Relative | G10: Proposed | I10: Rate of | J10: Relative
A11: No. | B11: Service | C11: Number | D11: Return | E11: ROR | G11: Increase | I11: Return | J11: ROR
B12: (a) | C12: (b) | D12: (c) | E12: (d) | G12: (e) | I12: (f) | J12: (g)
A14: 1 | B14: General Service | C14: 101 | D14: =INDEX(ROR!$C$20:$G$20,$A14+1) -> 0.06690627011 | E14: =INDEX(ROR!$C$21:$G$21,$A14+1) -> 0.9357364368 | G14: =INDEX(ROR!$C$47:$G$47,$A14+1) -> 7.61768515e-05 | I14: =INDEX(ROR!$C$38:$G$38,$A14+1) -> 0.06664835981 | J14: =INDEX(ROR!$C$37:$G$37,$A14+1) -> 0.9320031491
A15: 2 | B15: Large General Service | C15: 111/112 | D15: =INDEX(ROR!$C$20:$G$20,$A15+1) -> 0.09201449457 | E15: =INDEX(ROR!$C$21:$G$21,$A15+1) -> 1.286894564 | G15: =INDEX(ROR!$C$47:$G$47,$A15+1) -> -2.220446049e-16 | I15: =INDEX(ROR!$C$38:$G$38,$A15+1) -> 0.09327320799 | J15: =INDEX(ROR!$C$37:$G$37,$A15+1) -> 1.304322024
A16: 3 | B16: Interruptible Service | C16: 131/132 | D16: =INDEX(ROR!$C$20:$G$20,$A16+1) -> -0.1470933962 | E16: 0 | G16: =INDEX(ROR!$C$47:$G$47,$A16+1) -> 0 | I16: =INDEX(ROR!$C$38:$G$38,$A16+1) -> 0.07151087405 | J16: =INDEX(ROR!$C$37:$G$37,$A16+1) -> 1
A17: 4 | B17: Transportation Service | C17: 146 | D17: =INDEX(ROR!$C$20:$G$20,$A17+1) -> 0.1168986954 | E17: =INDEX(ROR!$C$21:$G$21,$A17+1) -> 1.634919546 | G17: =INDEX(ROR!$C$47:$G$47,$A17+1) -> 4.440892099e-16 | I17: =INDEX(ROR!$C$38:$G$38,$A17+1) -> 0.1186402331 | J17: =INDEX(ROR!$C$37:$G$37,$A17+1) -> 1.659051643
A18: 5 | B18: Total | D18: =INDEX(ROR!$C$20:$G$20,1) -> 0.07150119144 | E18: =INDEX(ROR!$C$21:$G$21,1) -> 1 | G18: =INDEX(ROR!$C$47:$G$47,1) -> 6.341020059e-05 | I18: =INDEX(ROR!$C$38:$G$38,1) -> 0.07151087405 | J18: =INDEX(ROR!$C$37:$G$37,1) -> 1
A36: (1) Includes Schedule 150/156 - Purchased Gas Cost Adjustment
A38: (2) Includes Schedule 155 - Gas Rate Adjustment, Schedule 191 - Energy Efficiency Rider Adjustment and Schedule 199 - Deferred State Income Tax Adjustment

Sheet Appendix F Pg 6
A1: AVISTA UTILITIES | V1: This worksheet uses Base & Billing rates from 'Rate Design' tab.
A2: IDAHO GAS, CASE NO. AVU-G-23-01
A3: PRESENT AND PROPOSED RATE COMPONENTS BY SCHEDULE
A10: Effective September 1, 2024
N12: Sch 197 - 2014 | R12: Proposed
D13: Present Base | G13: Present | J13: General | L13: Proposed | N13: Earnings Test | O13: Schedule 172 | P13: Schedule 177 | Q13: Proposed | R13: Base
D14: Distribution | E14: Present | F14: Revised | G14: Billing | H14: Present | J14: Rate | K14: Sch. 191 | L14: PGA-Gas Cost | N14: Rebate | O14: Tax reform | P14: Depreciation | Q14: Billing | R14: Distribution
B15: Type of Service | D15: Rate | E15: Schedule 172 | F15: Base Rates | G15: Rate Adj.(1) | H15: Billing Rate | J15: Inc/(Decr) | K15: Change | L15: Rate | M15: Open | N15: Credit (2) | O15: Change | P15: Credit | Q15: Rate | R15: Rate | T15: Base | U15: Bill | AB15: Sch 175 | AC15: Sch 150 | AD15: Sch 155 | AE15: Sch 191 | AF15: Sch 176
B16: (a) | D16: (b) | E16: (c) | F16: (d) | G16: (e) | H16: (f) | J16: (g) | K16: (f) | L16: (f) | M16: (f) | N16: (g) | O16: (h) | P16: (h) | Q16: (h) | R16: (i) | T16: Check | U16: Check | AB16: Decoupl | AC16: PGA | AD16: PGA | AE16: PP Rider | AF16: Tax Credit
A17: General Service - Schedule 101 | S17: Base
A18: Basic Charge | D18: ='Rate Design'!D4 -> 15 | G18: =H18-D18 -> 0 | H18: ='Rate Design'!D14 -> 15 | J18: =IF(ROUND(Q18-H18,5)<>ROUND(R18-D18,5),#VALUE!,R18-D18) -> 5 | Q18: ='Rate Design'!D36 -> 20 | R18: ='Rate Design'!D26 -> 20 | S18: =R18/D18-1 -> 0.3333333333
A19: Usage Charge: | AJ19: check | AL19: check | AM19: check | AO19: Schedule 172 Rate
A20: All therms | D20: ='Rate Design'!D6/100-AO20 -> 0.33371 | E20: 0 | F20: =D20+E20 -> 0.33371 | G20: =H20-F20 -> 0.59787 | H20: ='Rate Design'!D16/100 -> 0.93158 | J20: =(R20-D20) -> -0.07766 | K20: 0 | L20: 0 | M20: 0 | N20: 0 | O20: =-E20 -> 0 | P20: ='Sch 177'!G12 -> 0 | Q20: =H20+J20+O20+P20 -> 0.85392 | R20: ='Rate Design'!D28/100 -> 0.25605 | S20: =R20/D20-1 -> -0.2327170298 | T20: =D20+J20-R20 -> 0 | U20: =H20+J20+M20+N20-Q20+O20+P20 -> 0 | V20: =D18+(200*D20) -> 81.742 | W20: =H18+(200*H20) -> 201.316 | X20: =J18+(J20*200) -> -10.532 | Y20: =Q18+(200*Q20) -> 190.784 | Z20: =R18+(200*R20) -> 71.21 | AB20: -0.00783 | AC20: 0.25288 | AD20: -0.03754 | AE20: 0.01818 | AF20: -0.01567 | AG20: =AB20+AC20+AD20+AE20+AF20 -> 0.21002 | AI20: =Q20-H20 -> -0.07766 | AJ20: =ROUND(AI20-K20-J20,5) -> 0 | AL20: =H20+J20+K20-Q20 -> 0 | AM20: =R20-J20-D20 -> 0 | AO20: 0
A22: Large General Service - Schedule 111
A23: Usage Charge: | S23: =(R29/200+R30)-R24 -> 0
A24: ="First "&TEXT('Rate Design'!L6,"#,##0")&" therms" -> First 200 therms | D24: ='Rate Design'!L11/100 -> 0.4087 | E24: 0 | F24: =D24+E24 -> 0.4087 | G24: =H24-F24 -> 0.59667 | H24: ='Rate Design'!L21/100 -> 1.00537 | J24: =(R24-D24) -> -0.05265 | K24: 0 | L24: =$L$20 -> 0 | M24: =M20 -> 0 | N24: =$N$20 -> 0 | O24: =-E24 -> 0 | P24: ='Sch 177'!G13 -> 0 | Q24: =H24+J24+O24+P24 -> 0.95272 | R24: ='Rate Design'!L33/100 -> 0.35605 | S24: =R24/D24-1 -> -0.1288230976 | T24: =D24+J24-R24 -> 0 | U24: =H24+J24+M24+N24-Q24+O24+P24 -> 0 | V24: =D24*200 -> 81.74 | W24: =H24*200 -> 201.074 | X24: =J24*200 -> -10.53 | Y24: =Q24*200 -> 190.544 | Z24: =R24*200 -> 71.21 | AB24: -0.00687 | AC24: =AC20 -> 0.25288 | AD24: =AD20 -> -0.03754 | AE24: 0.00978 | AF24: -0.00811 | AG24: =AB24+AC24+AD24+AE24+AF24 -> 0.21014 | AI24: =Q24-H24 -> -0.05265 | AJ24: =ROUND(AI24-K24-J24,5) -> 0 | AL24: =H24+J24+K24-Q24 -> 0 | AM24: =R24-J24-D24 -> 0 | AO24: 0
A25: =TEXT('Rate Design'!L6,"#,##0")&" - "&TEXT('Rate Design'!L7,"#,##0")&" therms" -> 200 - 1,000 therms | D25: ='Rate Design'!E7/100-AO25 -> 0.32368 | E25: 0 | F25: =D25+E25 -> 0.32368 | G25: =H25-F25 -> 0.59667 | H25: ='Rate Design'!E17/100 -> 0.92035 | J25: =(R25-D25) -> 0.01083 | K25: =K24 -> 0 | L25: =$L$20 -> 0 | M25: =M20 -> 0 | N25: =$N$20 -> 0 | O25: =-E25 -> 0 | P25: =P24 -> 0 | Q25: =H25+J25+O25+P25 -> 0.93118 | R25: ='Rate Design'!E29/100 -> 0.33451 | S25: =R25/D25-1 -> 0.03345897182 | T25: =D25+J25-R25 -> 0 | U25: =H25+J25+M25+N25-Q25+O25+P25 -> 0 | AB25: =AB24 -> -0.00687 | AC25: =AC$24 -> 0.25288 | AD25: -0.03754 | AE25: 0.00978 | AF25: -0.00811 | AG25: 0.21014 | AI25: =Q25-H25 -> 0.01083 | AJ25: =ROUND(AI25-K25-J25,5) -> 0 | AL25: =H25+J25+K25-Q25 -> 0 | AM25: =R25-J25-D25 -> 0 | AO25: 0
A26: =TEXT('Rate Design'!L7,"#,##0")&" - "&TEXT(10000,"#,##0")&" therms" -> 1,000 - 10,000 therms | D26: ='Rate Design'!E8/100-AO26 -> 0.23575 | E26: 0 | F26: =D26+E26 -> 0.23575 | G26: =H26-F26 -> 0.59667 | H26: ='Rate Design'!E18/100 -> 0.83242 | J26: =(R26-D26) -> 0.00789 | K26: =K25 -> 0 | L26: =$L$20 -> 0 | M26: =M20 -> 0 | N26: =$N$20 -> 0 | O26: =-E26 -> 0 | P26: =P24 -> 0 | Q26: 0.84031 | R26: ='Rate Design'!E30/100 -> 0.24364 | S26: =R26/D26-1 -> 0.03346765642 | T26: =D26+J26-R26 -> 0 | U26: 0 | AB26: =AB24 -> -0.00687 | AC26: 0.25288 | AD26: -0.03754 | AE26: 0.00978 | AF26: -0.00811 | AG26: 0.21014 | AI26: =Q26-H26 -> 0.00789 | AJ26: =ROUND(AI26-K26-J26,5) -> 0 | AL26: =H26+J26+K26-Q26 -> 0 | AM26: =R26-J26-D26 -> 0 | AO26: 0
A27: ="All over "&TEXT(10000,"#,##0")&" therms" -> All over 10,000 therms | D27: ='Rate Design'!E9/100-AO27 -> 0.17764 | E27: 0 | F27: =D27+E27 -> 0.17764 | G27: =H27-F27 -> 0.59667 | H27: ='Rate Design'!E19/100 -> 0.77431 | J27: =(R27-D27) -> 0.00594 | K27: =K26 -> 0 | L27: =$L$20 -> 0 | M27: =M20 -> 0 | N27: =$N$20 -> 0 | O27: =-E27 -> 0 | P27: =P24 -> 0 | Q27: 0.78025 | R27: ='Rate Design'!E31/100 -> 0.18358 | S27: =R27/D27-1 -> 0.03343841477 | T27: =D27+J27-R27 -> 0 | U27: 0 | AB27: =AB24 -> -0.00687 | AC27: 0.25288 | AD27: -0.03754 | AE27: 0.00978 | AF27: -0.00811 | AG27: 0.21014 | AI27: =Q27-H27 -> 0.00594 | AJ27: =ROUND(AI27-K27-J27,5) -> 0 | AL27: =H27+J27+K27-Q27 -> 0 | AM27: =R27-J27-D27 -> 0 | AO27: 0
A28: Minimum Charge:
A29: per month | D29: ='Rate Design'!E5 -> 81.74 | G29: =H29-D29 -> 0 | H29: ='Rate Design'!E15 -> 81.74 | J29: =(R29-D29) -> -10.53 | Q29: ='Rate Design'!E37 -> 71.21 | R29: ='Rate Design'!E27 -> 71.21 | S29: =R29/D29-1 -> -0.1288230976
A30: per therm | D30: ='Rate Design'!E6/100 -> 0 | E30: 0 | F30: =D30+E30 -> 0 | G30: =H30-F30 -> 0.59667 | H30: ='Rate Design'!E16/100 -> 0.59667 | J30: =(R30-D30)-L30 -> 0 | K30: =K24 -> 0 | L30: =L20 -> 0 | M30: =M20 -> 0 | N30: =$N$20 -> 0 | O30: =-E30 -> 0 | P30: =P24 -> 0 | Q30: =H30+J30+O30+P30 -> 0.59667 | R30: ='Rate Design'!E28/100 -> 0 | S30: =R30/D30-1 ->  | T30: =D30+J30-R30 -> 0 | U30: =H30+J30+O30+M30+N30-Q30 -> 0 | V30: =$D29+D30*200 -> 81.74 | W30: =$H29+H30*200 -> 201.074 | X30: =$J29+J30*200 -> -10.53 | Y30: =$Q29+Q30*200 -> 190.544 | Z30: =$R29+R30*200 -> 71.21 | AB30: =AB24 -> -0.00687 | AC30: =AC$24 -> 0.25288 | AD30: =AD$24 -> -0.03754 | AE30: =AE$24 -> 0.00978 | AF30: =AF$24 -> -0.00811 | AG30: =AB30+AC30+AD30+AE30+AF30 -> 0.21014 | AI30: =Q30-H30 -> 0 | AJ30: =ROUND(AI30-K30-J30,5) -> 0 | AL30: =H30+J30+K30-Q30 -> 0 | AM30: =R30-J30-D30 -> 0 | AO30: 0
V31: =V24-V30 -> 0 | W31: =W24-W30 -> 0 | X31: =X24-X30 -> 0 | Y31: =Y24-Y30 -> 0 | Z31: =Z24-Z30 -> 0
A32: Interruptible Service - Schedule 131
A33: Usage Charge: | W33: Ann. Min. calc | Y33: Margin Rate | AA33: =D34 -> 0.20379
A34: All Therms | D34: ='Rate Design'!F6/100-AO34 -> 0.20379 | E34: 0 | F34: =D34+E34 -> 0.20379 | G34: =H34-F34 -> 0.36885 | H34: ='Rate Design'!F16/100 -> 0.57264 | J34: =(R34-D34) -> 0 | L34: 0 | M34: =M20 -> 0 | N34: =$N$20 -> 0 | O34: =-E34 -> 0 | Q34: =H34+J34+O34+P34 -> 0.57264 | R34: ='Rate Design'!F28/100 -> 0.20379 | S34: =R34/D34-1 -> 0 | T34: =D34+J34-R34 -> 0 | U34: =H34+J34+M34+N34-Q34+O34+P34 -> 0 | Y34: GRC | AA34: =J34 -> 0 | AC34: 0.16283 | AD34: 0 | AE34: =AE24 -> 0.00978 | AF34: -0.00365 | AG34: =AB34+AC34+AD34+AE34+AF34 -> 0.16896 | AI34: =Q34-H34 -> 0 | AJ34: =ROUND(AI34-K34-J34,5) -> 0 | AL34: =H34+J34+K34-Q34 -> 0 | AM34: =R34-J34-D34 -> 0 | AO34: 0
AA35: =AA33+AA34 -> 0.20379
A36: Transportation Service - Schedule 146
A37: Basic Charge | D37: ='Rate Design'!G4 -> 300 | G37: =H37-D37 -> 0 | H37: ='Rate Design'!G14 -> 300 | J37: =(R37-D37) -> 0 | M37: =Q37-H37-J37-L37 -> 0 | N37: 0 | Q37: ='Rate Design'!G36 -> 300 | R37: ='Rate Design'!G26 -> 300 | S37: =R37/D37-1 -> 0 | W37: Ann. Min. calc | Y37: Bill @ 250,000 | AA37: =12*R37 -> 3600
A38: Usage Charge: | Y38: therms | AA38: =250000*R39 -> 30580
A39: All Therms | D39: ='Rate Design'!G6/100-AO39 -> 0.12232 | E39: 0 | F39: =D39+E39 -> 0.12232 | G39: =H39-F39 -> -0.00365 | H39: ='Rate Design'!G16/100 -> 0.11867 | J39: =(R39-D39) -> 0 | N39: =N20 -> 0 | O39: =-E39 -> 0 | P39: ='Sch 177'!G15 -> 0 | Q39: =H39+J39+O39+P39 -> 0.11867 | R39: ='Rate Design'!G28/100 -> 0.12232 | S39: =R39/D39-1 -> 0 | T39: =D39+J39-R39 -> 0 | U39: =H39+J39+M39+N39-Q39+O39+P39 -> 0 | AA39: =AA37+AA38 -> 34180 | AC39: 0 | AD39: 0 | AE39: 0 | AF39: -0.00365 | AG39: =AB39+AC39+AD39+AE39+AF39 -> -0.00365 | AI39: =Q39-H39 -> 0 | AJ39: =ROUND(AI39-K39-J39,5) -> 0 | AL39: =H39+J39+K39-Q39 -> 0 | AM39: =R39-J39-D39 -> 0 | AO39: 0
A42: (1) Includes Schedule 150 - Purchased Gas Cost Adjustment, Schedule 155 - Gas Rate Adjustment, Schedule 175 - Fixed Cost Adjustment and Schedule 191 - DSM, Schedule 176 - Tax Customer Credit

Sheet ROR
A1: AVISTA UTILITIES
A2: IDAHO GAS
A3: PRESENT & PROPOSED RATE OF RETURN BY RATE SCHEDULE
A4: 12 MONTHS ENDED June 30, 2022
B6: Not updated for actual Revenue Requirement
C7: Total | D7: Sch 101 | E7: Sch 111 | F7: Sch 131 | G7: Sch 146
B8: Total Rate Base | C8: =SUM(D8:G8) -> 206556000 | D8: 170752986 | E8: 33787338.88 | F8: 0.012714039 | G8: 2015675.069 | H8: from COS | L8: =D8/$C$8 -> 0.8266667927 | M8: =E8/$C$8 -> 0.1635747152 | N8: =F8/$C$8 -> 6.155250394e-11 | O8: =G8/$C$8 -> 0.009758491979
B10: Revenue From Retail Rates | C10: =SUM(D10:G10) -> 47311000 | D10: 39382000 | E10: 7428000 | F10: 0 | G10: 501000 | H10: From Rate Year 1 | L10: =D10/$C$10 -> 0.8324068398 | M10: =E10/$C$10 -> 0.1570036567 | N10: =F10/$C$10 -> 0 | O10: =G10/$C$10 -> 0.0105895035
B11: Other Operating Revenues | C11: =SUM(D11:G11) -> 1692000 | D11: 1398766.108 | E11: 276728.1237 | F11: 0.0001041551621 | G11: 16505.76801 | H11: from COS
B12: Total Revenues | C12: =IF(ROUND(C10+C11,0)<>ROUND(SUM(D12:G12),0),#VALUE!,SUM(D12:G12)) -> 49003000 | D12: =D10+D11 -> 40780766.11 | E12: =E10+E11 -> 7704728.124 | F12: =F10+F11 -> 0.0001041551621 | G12: =G10+G11 -> 517505.768
B14: Total Operating Exp b4 conv items & taxes | C14: =SUM(D14:G14) -> 32661999.9 | D14: =D17-D15-D16 -> 28221323.98 | E14: =E17-E15-E16 -> 4191430.651 | F14: =F17-F15-F16 -> 0.002331436819 | G14: =G17-G15-G16 -> 249245.2642
B15: Revenue Related conversion items | C15: =SUM(D15:G15) -> 157000 | D15: 129971.7594 | E15: 25319.22629 | F15: 0 | G15: 1709.014269 | H15: from COS
B16: Income Taxes | C16: =SUM(D16:G16) -> 1415000 | D16: 1005024.96 | E16: 379053.3365 | F16: -0.0003571304795 | G16: 30921.70346 | H16: from COS
B17: Total Expenses | C17: =IF(ROUND(SUM(C14:C16),0)<>ROUND(SUM(D17:G17),0),#VALUE!,SUM(D17:G17)) -> 34233999.9 | D17: 29356320.7 | E17: 4595803.214 | F17: 0.001974306339 | G17: 281875.982 | H17: from COS | L17: =D17/$C$17 -> 0.8575194481 | M17: =E17/$C$17 -> 0.1342467496 | N17: =F17/$C$17 -> 5.767092203e-11 | O17: =G17/$C$17 -> 0.008233802149
B19: Net Operating Income | C19: =IF(ROUND(C12-C17,0)<>ROUND(SUM(D19:G19),0),#VALUE!,SUM(D19:G19)) -> 14769000.1 | D19: =D12-D17 -> 11424445.41 | E19: =E12-E17 -> 3108924.91 | F19: =F12-F17 -> -0.001870151177 | G19: =G12-G17 -> 235629.786
B20: Present Rate of Return | C20: =IF(C8,C19/C8,0) -> 0.07150119144 | D20: =IF(D8,D19/D8,0) -> 0.06690627011 | E20: =IF(E8,E19/E8,0) -> 0.09201449457 | F20: =IF(F8,F19/F8,0) -> -0.1470933962 | G20: =IF(G8,G19/G8,0) -> 0.1168986954
B21: Present Return Ratio | C21: =C20/$C20 -> 1 | D21: =D20/$C20 -> 0.9357364368 | E21: =E20/$C20 -> 1.286894564 | F21: =F20/$C20 -> -2.057216017 | G21: =G20/$C20 -> 1.634919546
L22: Total | M22: Sch 101 | N22: Sch 111 | O22: Sch 131 | P22: Sch 146
B23: Interest Expense | C23: =SUM(D23:G23) -> 4909000 | D23: 4058107.285 | E23: 802988.2771 | F23: 0.0003021612418 | G23: 47904.43713 | H23: from COS | K23: Current Margin | L23: =SUM(M23:P23) -> 47310.61251 | M23: ='Appendix F Pg 4'!D29 -> 39381.34102 | N23: ='Appendix F Pg 4'!D30 -> 7427.90209 | O23: ='Appendix F Pg 4'!D31 -> 2e-05 | P23: ='Appendix F Pg 4'!D32 -> 501.36938
K24: % of CM | M24: =M23/$L$23 -> 0.8323997287 | N24: =N23/$L$23 -> 0.1570028731 | O24: =O23/$L$23 -> 4.227381329e-10 | P24: =P23/$L$23 -> 0.01059739778
B25: Proposed Misc Revenue Increase | C25: 0
B26: Proposed Rate Revenue Increase | C26: 3000 | D26: =C26/C10 -> 6.341020059e-05 | L26: =SUM(M26:P26) -> 3000 | M26: =$C$26*M24 -> 2497.199186 | N26: =$C$26*N24 -> 471.0086192 | O26: =$C$26*O24 -> 1.268214399e-06 | P26: =$C$26*P24 -> 31.79219334
B27: Proposed Rev Increase | C27: =C25+C26 -> 3000
D28: change
B29: Proposed Rate Revenues | C29: =C10+C26 -> 47314000 | D29: =C29-C10 -> 3000 | F29: Uncollectibles | G29: 0.001795
B30: incremental conversion expenses | C30: =ROUND(C27*G29,-3)+ROUND(C27*G30,-3) -> 0 | F30: Commiss Fees | G30: 0.001982
B31: incremental Income Taxes | C31: =ROUND(C27*G32,-3)+ROUND(C27*G31,-3) -> 1000 | F31: State Inc Tax | G31: 0
B32: Proposed Return | C32: =C19+C27-C30-C31 -> 14771000.1 | D32: =C32-C19 -> 2000 | F32: Federal Inc Tax | G32: 0.209207
B33: Proposed Return % | C33: =C32/C8 -> 0.07151087405
B35: Allocation of incremental Misc Rev | C35: =SUM(D35:G35) -> 0 | H35: from COS
A36: (1) Includes Schedule 150/156 - Purchased Gas Cost Adjustment
B37: Target Relative Return | C37: =C38/C33 -> 1 | D37: =D39/D8/C33 -> 0.9320031491 | E37: 1.304322024 | F37: 1 | G37: 1.659051643 | H37: Input
B38: Target Return % | C38: =IF(C8,C39/C8,0) -> 0.07151087405 | D38: =IF(D8,D39/D8,0) -> 0.06664835981 | E38: =IF(E8,E39/E8,0) -> 0.09327320799 | F38: =IF(F8,F39/F8,0) -> 0.07151087405 | G38: =IF(G8,G39/G8,0) -> 0.1186402331
B39: Target Return (NOI b4 Interest) | C39: =C32 -> 14771000.1 | D39: =$C$32-SUM(E39:G39) -> 11380406.45 | E39: =E8*E37*$C$32/$C$8 -> 3151453.487 | F39: =F8*F37*$C$32/$C$8 -> 0.0009091920419 | G39: =G8*G37*$C$32/$C$8 -> 239140.1601 | H39: =ROUND(C39-SUM(D39:G39),0) -> 0
B40: Target Return after Interest Expense | C40: =C39-C23 -> 9862000.1 | D40: =D39-D23 -> 7322299.167 | E40: =E39-E23 -> 2348465.21 | F40: =F39-F23 -> 0.0006070308 | G40: =G39-G23 -> 191235.7229 | H40: 0
B41: Target Return b4 Income Taxes & Interest | C41: =C40+C16+C31+C23 -> 16187000.1 | D41: =D40+D23+D40/$C40*SUM($C$16,$C$31) -> 12431752.58 | E41: =E40+E23+E40/$C40*SUM($C$16,$C$31) -> 3488649.461 | F41: =F40+F23+F40/$C40*SUM($C$16,$C$31) -> 0.0009963503874 | G41: =G40+G23+G40/$C40*SUM($C$16,$C$31) -> 266598.0571 | H41: 0
B42: Target Return b4 Misc Rev | C42: =C41-C11-$C$25*C35 -> 14495000.1 | D42: =D41-D11-$C$25*D35 -> 11032986.47 | E42: =E41-E11-$C$25*E35 -> 3211921.338 | F42: =F41-F11-$C$25*F35 -> 0.0008921952254 | G42: =G41-G11-$C$25*G35 -> 250092.2891 | H42: 0
B43: =B14 -> Total Operating Exp b4 conv items & taxes | C43: 32661999.9 | D43: 28221323.98 | E43: 4191430.651 | F43: 0.002331436819 | G43: 249245.2642 | H43: 0
B44: Conversion Items | C44: =C15+C30 -> 157000 | D44: =$C44*D46/$C46 -> 130689.5422 | E44: =$C44*E46/$C46 -> 24648.01116 | F44: =$C44*F46/$C46 -> 1.073245183e-05 | G44: =$C44*G46/$C46 -> 1662.446633 | H44: =ROUND(C44-SUM(D44:G44),0) -> 0
B45: Incremental Rate Revenue | C45: =C26 -> 3000 | D45: =(D42-D10+D14+($C$44*D10)/$C$29)/(1-$C$44/$C$29) -> 2999.996766 | E45: =(E42-E10+E14+($C$44*E10)/$C$29)/(1-$C$44/$C$29) -> -1.730143013e-09 | F45: =(F42-F10+F14+($C$44*F10)/$C$29)/(1-$C$44/$C$29) -> 0.003234364496 | G45: =(G42-G10+G14+($C$44*G10)/$C$29)/(1-$C$44/$C$29) -> 1.628852995e-10 | H45: 0
B46: Target Rate Revenue | C46: =C42+C43+C44 -> 47314000 | D46: =D10+D45 -> 39385000 | E46: =E10+E45 -> 7428000 | F46: =F10+F45 -> 0.003234364496 | G46: =G10+G45 -> 501000 | H46: 0
B47: Change in Rate Revenue | C47: =IF(C10,C46/C10-1,0) -> 6.341020059e-05 | D47: =IF(D10,D46/D10-1,0) -> 7.61768515e-05 | E47: =IF(E10,E46/E10-1,0) -> -2.220446049e-16 | F47: =IF(F10,F46/F10-1,0) -> 0 | G47: =IF(G10,G46/G10-1,0) -> 4.440892099e-16 | I47: =D26 -> 6.341020059e-05
B49: Incremental Rate Revenue - rounded | C49: =SUM(D49:G49) -> 3000 | D49: =ROUND(D45,-3) -> 3000 | E49: =ROUND(E45,-3) -> 0 | F49: 0 | G49: 0
B50: Target Rate Revenue - rounded | C50: =SUM(D50:G50) -> 47314000 | D50: 39385000 | E50: 7428000 | F50: 0 | G50: 501000
B53: Billed Revenue | C53: =SUM(D53:I53) -> 105956295.8 | D53: ='Appendix F Pg 4'!H29*1000 -> 82439975.4 | E53: ='Appendix F Pg 4'!H30*1000 -> 22928882.76 | F53: ='Appendix F Pg 4'!H31*1000 -> 0.06 | G53: ='Appendix F Pg 4'!H32*1000 -> 487153.17 | H53: ='Appendix F Pg 4'!H33*1000 -> 100284.44
B54: Billied Percentage Increase | C54: =C45/C53 -> 2.831356057e-05 | D54: =D45/D53 -> 3.639007352e-05 | E54: =E45/E53 -> -7.545692616e-17 | F54: =F45/F53 -> 0.05390607493 | G54: =G45/G53 -> 3.343615716e-16
B56: % Movement Towards Unity | D56: =(D37-D21)/(1-D21) -> -0.05809338121 | E56: =(E37-E21)/(1-E21) -> -0.06074517494 | F56: =(F37-F21)/(1-F21) -> 1 | G56: =(G37-G21)/(1-G21) -> -0.03800811841

Sheet Bill Determ
A1: AVISTA UTILITIES
A2: IDAHO NATURAL GAS
A3: ACTUAL / PRO FORMA BILLING DETERMINANTS BY RATE SCHEDULE
A4: 12 MONTHS ENDED JUNE 30, 2022
A7: Schedule 101 | B7: Total therms | C7: Total Billings
A8: therms per Revenue Run | B8: ='Rev Runs CY'!O20 -> 70027024.2 | C8: ='Rev Runs CY'!P6 -> 1079689
D10: 1001-10000 | F10: Total
A11: Schedules 111/112 | B11: 0-200 thms | C11: 201-1000 thms | D11: therms | E11: >10000 thms | F11: therms | G11: Total Billings
A12: therms by block, Sch 111/112 | B12: ='Block Analysis'!P12+'Block Analysis'!P26 -> 3283296.172 | C12: ='Block Analysis'!P13+'Block Analysis'!P27 -> 8247668.847 | D12: ='Block Analysis'!P14+'Block Analysis'!P28 -> 11206259.6 | E12: ='Block Analysis'!P15+'Block Analysis'!P29 -> 3500647.971 | F12: =SUM(B12:E12) -> 26237872.59 | G12: ='Rev Runs CY'!P7+'Rev Runs CY'!P8 -> 18727
A13: less: customer moved to Sch 146 (3) | B13: =-'Big Schedules'!P15 -> 0 | C13: =-'Big Schedules'!Q15 -> 0 | D13: =-'Big Schedules'!R15 -> 0 | E13: =-'Big Schedules'!S15 -> 0 | F13: =SUM(B13:E13) -> 0 | G13: 0
A14: add: customer moved from Sch 132 | B14: ='Big Schedules'!P40 -> 0 | C14: ='Big Schedules'!Q40 -> 0 | D14: ='Big Schedules'!R40 -> 0 | E14: ='Big Schedules'!S40 -> 0 | F14: =SUM(B14:E14) -> 0 | G14: 0
A15: Adjusted Sch 111/112 therms | B15: =SUM(B12:B14) -> 3283296.172 | C15: 8247668.847 | D15: 11206259.6 | E15: 3500647.971 | F15: 26237872.59 | G15: 18727
A17: Total thms. Per Rev. Run(1) | F17: ='Rev Runs CY'!O21+'Rev Runs CY'!O22 -> 26237872.59
A18: add: customer moved from Sch 146 | F18: =F13 -> 0
A19: add: customer moved from Sch 132 | F19: =F14 -> 0
A20: Adjusted Sch 111/112 therms | F20: =SUM(F17:F19) -> 26237872.59
A21: Adjust. To Actual | F21: =F20-F15 -> 0
B23: Total
A24: Schedule 131,132 | B24: therms | C24: Total Billings
A25: billed/pro forma therms | B25: ='Rev Runs CY'!O23+0.1 -> 0.1 | C25: ='Rev Runs CY'!P9 -> 0
B27: Total
A28: Schedule 146 | B28: therms | C28: Total Billings
A29: billed/pro forma therms | B29: ='Big Schedules'!N18 -> 3922248 | C29: =6*12 -> 72
A31: Sch. 147-Special Transportation | B31: Total therms | C31: Total Billings
A32: billed/pro forma therms | B32: ='Big Schedules'!N52 -> 1314220 | C32: =12*1 -> 12
A34: Sch. 159 | B34: Total therms | C34: Total Billings
A35: Clearwater | B35: ='Big Schedules'!N61 -> 51912883 | C35: =12*1 -> 12
A43: ** These billing determinants do not included the effects of weather or unbilled therm usage
A50: Revenue Run therms, this sheet | B50: =B8+F20+B25+B29+B32+B35 -> 153414247.9
A52: actual Revenue Run therms | B52: ='Rev Runs CY'!O27 -> 153331037.8
A53: add:
A54: Sch 146 Unbilled/Unbilled True-Up | B54: ='Big Schedules'!N14+'Big Schedules'!N15+'Big Schedules'!N16 -> 61583
A55: Sch 146 Customer Usage Adj | B55: ='Big Schedules'!N17 -> 21627
B56: =B52+B54+B55 -> 153414247.8
A57: Diff | B57: =B50-B56 -> 0.09999999404
A59: from Present Rev tab | B59: =SUM('Pres & Prop Rev'!D20:I20) -> 153414247.9
A60: this sheet | B60: =B50 -> 153414247.9
A61: Diff | B61: =B59-B60 -> 0
A64: Rev. Run customers | B64: ='Rev Runs CY'!O13*12 -> 1098512
A65: less:
A66: customer switching, Sch 111 to 146 | B66: 0
A67: Sch 146 normalize | B67: 0
A68: Sch 147 normalize | B68: 0
B70: =B64-SUM(B65:B69) -> 1098512
A72: from Present Rev tab | B72: =SUM('Pres & Prop Rev'!D25:I26) -> 1098512 | C72: =C8+G15+C25+C29+C32+C35 -> 1098512
B74: =B72+B73 -> 1098512
A75: Diff | B75: =B70-B74 -> 0

Sheet Rate Spread
A1: AVISTA UTILITIES
A2: IDAHO GAS, CASE NO. AVU-G-23-01
A3: PROPOSED INCREASE BY SERVICE SCHEDULE
A4: 12 MONTHS ENDED JUNE 30, 2022
A5: (000s of Dollars)
A7: Effective September 1, 2023 | Q7: Sch 197 | S7: Sch 197
D8: Base Tariff | G8: Settlement | H8: Base Tariff | I8: Base | J8: Total Billed | M8: Sch 176 | N8: Total Billed | O8: Percent | P8: Total | Q8: Percent | R8: Total | S8: Percent | T8: Total Billed | U8: Percent | V8: Percent
D9: Distribution Revenue | E9: Proposed | F9: Percentage | G9: Base | H9: Distribution Revenue | I9: Tariff | J9: Revenue | K9: Total | L9: Sch 176 | M9: Tax Credit | N9: Revenue | O9: Increase on | P9: Sch 197 - 2014 | Q9: Increase on | R9: Sch 197 - 2014 | S9: Increase on | T9: Revenue | U9: Increase | V9: Total Increase
A10: Line | B10: Type of | C10: Schedule | D10: Under Present | E10: General | F10: of | G10: Rate | H10: Under Proposed | I10: Percent | J10: at Present | K10: General | L10: Tax Credit | M10: Percent | N10: at Proposed | O10: Billed GRC | P10: Earnings/DSM | Q10: Billed GRC | R10: Earnings | S10: Billed GRC | T10: at Proposed | U10: on Billed | V10: on Billed
A11: No. | B11: Service | C11: Number | D11: Rates (1) | E11: Change | F11: Base Change | G11: Change | H11: Rates | I11: Increase | J11: Rates (2) | K11: Change | L11: Decrease | M11: Decrease | N11: Rates (2) | O11: Revenue | P11: Rebate Expiration (2) | Q11: Revenue | R11: Rebate | S11: Revenue | T11: Rates (2) | U11: Revenue | V11: Revenue (2)
B12: (a) | C12: (b) | D12: (c) | E12: (d) | F12: (d) | G12: (e) | H12: (f) | I12: (g) | J12: (h) | K12: (i) | L12: (j) | M12: (k) | N12: (l) | O12: (k) | P12: (l) | Q12: (m) | R12: (n) | S12: (o) | T12: (k) | U12: (o) | V12: (m)
A14: 1 | B14: General Service | C14: 101 | D14: ='Appendix F Pg 4'!D14 -> 38129.50052 | F14: 1 | G14: =D14*($Z$21*F14) -> 413.9228006 | H14: =D14+G14 -> 38543.42332 | I14: =G14/D14 -> 0.01085571001 | J14: ='Appendix F Pg 4'!H14 -> 79669.2129 | K14: =G14 -> 413.9228006 | L14: =((G14/$G$19)*$Y$24) -> 0 | M14: =L14/J14 -> 0 | N14: =+K14+J14+L14 -> 80083.1357 | O14: =ROUND(E14/J14,3) -> 0 | P14: 0 | Q14: =ROUND(P14/J14,3) -> 0 | R14: 0 | S14: =ROUND(R14/J14,3) -> 0 | T14: =J14+K14+P14+R14 -> 80083.1357 | U14: =O14+Q14+S14 -> 0 | V14: =(K14+L14)/J14 -> 0.005195517635
A15: 2 | B15: Large General Service | C15: 111/112 | D15: ='Appendix F Pg 4'!D15 -> 7427.84014 | F15: 0 | G15: =D15*($Z$21*F15) -> 0 | H15: =D15+G15 -> 7427.84014 | I15: =G15/D15 -> 0 | J15: ='Appendix F Pg 4'!H15 -> 22929.08056 | K15: =G15 -> 0 | L15: =((G15/$G$19)*$Y$24) -> 0 | M15: =L15/J15 -> 0 | N15: =+K15+J15+L15 -> 22929.08056 | O15: =E15/J15 -> 0 | P15: 0 | Q15: =P15/J15 -> 0 | R15: 0 | S15: 0 | T15: =J15+K15+P15+R15 -> 22929.08056 | U15: =O15+Q15+S15 -> 0 | V15: =(K15+L15)/J15 -> 0
A16: 3 | B16: Interruptible Service | C16: 131/132 | D16: ='Appendix F Pg 4'!D16 -> 2e-05 | F16: 0 | G16: 0 | H16: 2e-05 | I16: 0 | J16: ='Appendix F Pg 4'!H16 -> 6e-05 | K16: 0 | L16: 0 | M16: 0 | N16: 6e-05 | O16: =E16/J16 -> 0 | P16: 0 | Q16: =P16/J16 -> 0 | R16: 0 | S16: 0 | T16: =J16+K16+P16+R16 -> 6e-05 | U16: 0 | V16: 0
A17: 4 | B17: Transportation Service | C17: 146 | D17: ='Appendix F Pg 4'!D17 -> 501.36938 | F17: 0 | G17: 0 | H17: 501.36938 | I17: 0 | J17: ='Appendix F Pg 4'!H17 -> 487.05317 | K17: 0 | L17: 0 | M17: 0 | N17: 487.05317 | O17: =E17/J17 -> 0 | P17: 0 | Q17: =P17/J17 -> 0 | R17: 0 | S17: 0 | T17: =J17+K17+P17+R17 -> 487.05317 | U17: 0 | V17: =(K17+L17)/J17 -> 0
A18: 5 | B18: Special Contracts | C18: 148 | D18: ='Appendix F Pg 4'!D18 -> 100.28444 | F18: 0 | G18: 0 | H18: 100.28444 | I18: 0 | J18: ='Appendix F Pg 4'!H18 -> 100.28444 | K18: 0 | L18: 0 | M18: 0 | N18: 100.28444 | O18: =E18/J18 -> 0 | P18: 0 | Q18: =P18/J18 -> 0 | R18: 0 | S18: 0 | T18: =J18+K18+P18+R18 -> 100.28444 | U18: 0 | V18: 0
A19: 6 | B19: Total | D19: =SUM(D14:D18) -> 46158.9945 | E19: =SUM(E14:E18) -> 0 | G19: =SUM(G14:G18) -> 413.9228006 | H19: =SUM(H14:H18) -> 46572.9173 | I19: =G19/D19 -> 0.008967327063 | J19: =SUM(J14:J18) -> 103185.6311 | K19: =SUM(K14:K18) -> 413.9228006 | L19: =SUM(L14:L18) -> 0 | M19: =L19/J19 -> 0 | N19: =+K19+J19+L19 -> 103599.5539 | O19: =E19/J19 -> 0 | P19: =SUM(P14:P18) -> 0 | Q19: =P19/J19 -> 0 | R19: =SUM(R14:R18)+0.4 -> 0.4 | S19: 0 | T19: =SUM(T14:T18) -> 103599.5539 | U19: 0 | V19: 0.004011438376
D20: =ROUND(D19-SUM(D14:D18),0) -> 0 | E20: =ROUND(E19-SUM(E14:E18),0) -> 0
X21: Rev Req | Y21: 500 | Z21: =(Y21)/SUM(D14:D17) -> 0.01085571001
A24: Effective September 1, 2024 | X24: Offset | Y24: 0
D26: Base Tariff | G26: Settlement | H26: Base Tariff | I26: Base | J26: Total Billed | L26: Incremental | M26: Sch 176 | N26: Total Billed | O26: Percent | P26: Total | Q26: Percent | R26: Total | S26: Percent | T26: Total Billed | U26: Percent | V26: Percent
D27: Distribution Revenue | E27: Proposed | F27: Percentage | G27: Base | H27: Distribution Revenue | I27: Tariff | J27: Revenue | K27: Total | L27: Sch 176 | M27: Tax Credit | N27: Revenue | O27: Increase on | P27: Sch 197 - 2014 | Q27: Increase on | R27: Sch 197 - 2014 | S27: Increase on | T27: Revenue | U27: Increase | V27: Total Increase
A28: Line | B28: Type of | C28: Schedule | D28: Under Present | E28: General | F28: of | G28: Rate | H28: Under Proposed | I28: Percent | J28: at Present | K28: General | L28: Tax Credit | M28: Percent | N28: at Proposed | O28: Billed GRC | P28: Earnings/DSM | Q28: Billed GRC | R28: Earnings | S28: Billed GRC | T28: at Proposed | U28: on Billed | V28: on Billed
A29: No. | B29: Service | C29: Number | D29: Rates (1) | E29: Increase | F29: Base Change | G29: Change | H29: Rates | I29: Increase | J29: Rates (2) | K29: Increase | L29: Decrease | M29: Decrease | N29: Rates (2) | O29: Revenue | P29: Rebate Expiration (2) | Q29: Revenue | R29: Rebate | S29: Revenue | T29: Rates (2) | U29: Revenue | V29: Revenue (2)
B30: (a) | C30: (b) | D30: (c) | E30: (d) | F30: (d) | G30: (e) | H30: (f) | I30: (g) | J30: (h) | K30: (i) | L30: (j) | M30: (k) | N30: (l) | O30: (k) | P30: (l) | Q30: (m) | R30: (n) | S30: (o) | T30: (k) | U30: (o) | V30: (m)
A32: 1 | B32: General Service | C32: 101 | D32: =H14 -> 38543.42332 | F32: 1 | G32: =((G14/$G$19)*$Y$39) -> 1000 | H32: =D32+G32 -> 39543.42332 | I32: =G32/D32 -> 0.02594476343 | J32: =N14 -> 80083.1357 | K32: =G32 -> 1000 | L32: 0 | M32: =L32/J32 -> 0 | N32: =+K32++L32 -> 1000 | O32: =ROUND(E32/J32,3) -> 0 | P32: 0 | Q32: =ROUND(P32/J32,3) -> 0 | R32: 0 | S32: =ROUND(R32/J32,3) -> 0 | T32: =J32+K32+P32+R32 -> 81083.1357 | U32: =O32+Q32+S32 -> 0 | V32: =(K32+L32)/J32 -> 0.01248702353
A33: 2 | B33: Large General Service | C33: 111/112 | D33: =H15 -> 7427.84014 | F33: 0 | G33: =((G15/$G$19)*$Y$39) -> 0 | H33: =D33+G33 -> 7427.84014 | I33: =G33/D33 -> 0 | J33: =N15 -> 22929.08056 | K33: =G33 -> 0 | L33: 0 | M33: =L33/J33 -> 0 | N33: =+K33++L33 -> 0 | O33: =E33/J33 -> 0 | P33: 0 | Q33: =P33/J33 -> 0 | R33: 0 | S33: 0 | T33: =J33+K33+P33+R33 -> 22929.08056 | U33: =O33+Q33+S33 -> 0 | V33: =(K33+L33)/J33 -> 0
A34: 3 | B34: Interruptible Service | C34: 131/132 | D34: 2e-05 | F34: 0 | G34: 0 | H34: 2e-05 | I34: 0 | J34: 6e-05 | K34: 0 | L34: 0 | M34: 0 | N34: 0 | O34: =E34/J34 -> 0 | P34: 0 | Q34: =P34/J34 -> 0 | R34: 0 | S34: 0 | T34: =J34+K34+P34+R34 -> 6e-05 | U34: 0 | V34: 0
A35: 4 | B35: Transportation Service | C35: 146 | D35: 501.36938 | F35: 0 | G35: 0 | H35: 501.36938 | I35: 0 | J35: 487.05317 | K35: 0 | L35: 0 | M35: 0 | N35: 0 | O35: =E35/J35 -> 0 | P35: 0 | Q35: =P35/J35 -> 0 | R35: 0 | S35: 0 | T35: =J35+K35+P35+R35 -> 487.05317 | U35: 0 | V35: 0
A36: 5 | B36: Special Contracts | C36: 148 | D36: 100.28444 | F36: 0 | G36: 0 | H36: 100.28444 | I36: 0 | J36: 100.28444 | K36: 0 | L36: 0 | M36: 0 | N36: 0 | O36: =E36/J36 -> 0 | P36: 0 | Q36: =P36/J36 -> 0 | R36: 0 | S36: 0 | T36: =J36+K36+P36+R36 -> 100.28444 | U36: 0 | V36: 0
A37: 6 | B37: Total | D37: =SUM(D32:D36) -> 46572.9173 | E37: =SUM(E32:E36) -> 0 | G37: =SUM(G32:G36) -> 1000 | H37: =SUM(H32:H36) -> 47572.9173 | I37: =G37/D37 -> 0.02147170626 | J37: =SUM(J32:J36) -> 103599.5539 | K37: =SUM(K32:K36) -> 1000 | L37: 0 | M37: =L37/J37 -> 0 | N37: =+K37+J37 -> 104599.5539 | O37: =E37/J37 -> 0 | P37: =SUM(P32:P36) -> 0 | Q37: =P37/J37 -> 0 | R37: =SUM(R32:R36)+0.4 -> 0.4 | S37: 0 | T37: =SUM(T32:T36) -> 104599.5539 | U37: 0 | V37: 0.009652551213
D38: =ROUND(D37-SUM(D32:D36),0) -> 0 | E38: =ROUND(E37-SUM(E32:E36),0) -> 0
X39: Rev Req | Y39: 1000 | Z39: =Y39/D37 -> 0.02147170626
A40: (1) Excludes Schedule 150 - Purchased Gas Cost Adjustment, Schedule 155 - Gas Rate Adjustment, & Schedule 191 - DSM
A41: (2) Includes Schedule 150 - Purchased Gas Cost Adjustment, Schedule 155 - Gas Rate Adjustment, & Schedule 191 - DSM

Sheet Sch 177 (hidden)
A2: Schedule 177
A3: Deferred Depreciation Credit Rate
D6: Base Tariff
D7: Distribution Revenue | E7: Schedule 177 | G7: Schedule 177
A8: Line | B8: Type of | C8: Schedule | D8: Under Present | E8: Tax Credit | F8: Test Year | G8: Rate
A9: No. | B9: Service | C9: Number | D9: Rates (1) | E9: Change | F9: Therms | G9: Per Therm
B10: (a) | C10: (b) | D10: (c)
A12: 1 | B12: General Service | C12: 101 | D12: ='Pres & Prop Rev'!$D$145/1000 -> 39381.34102 | E12: =D12/$D$16*-$E$21 -> 0 | F12: ='Pres & Prop Rev'!D46 -> 69479506.2 | G12: =E12/F12 -> 0 | J12: =G12*F12 -> 0
A13: 2 | B13: Large General Service | C13: 111/112 | D13: ='Pres & Prop Rev'!$E$145/1000 -> 7427.90209 | E13: =D13/$D$16*-$E$21 -> 0 | F13: ='Pres & Prop Rev'!E46 -> 26075117.59 | G13: =E13/F13 -> 0 | J13: =G13*F13 -> 0
A14: 3 | B14: Interruptible Service | C14: 131/132 | D14: ='Pres & Prop Rev'!$F$145/1000 -> 2e-05 | E14: =D14/$D$16*-$E$21 -> 0 | F14: ='Pres & Prop Rev'!F46 -> 0.1 | J14: 0
A15: 4 | B15: Transportation Service | C15: 146 | D15: ='Pres & Prop Rev'!$G$145/1000 -> 501.36938 | E15: =D15/$D$16*-$E$21 -> 0 | F15: ='Pres & Prop Rev'!G46 -> 3922248 | G15: 0 | J15: 0
A16: 6 | B16: Total | D16: ='Pres & Prop Rev'!$C$145/1000 -> 47410.89695 | E16: =D16/$D$16*-$E$21 -> 0 | J16: =SUM(J12:J15) -> 0
D19: Total | E19: 0
D20: Conversion Factor | E20: =1-0.002593-0.002401 -> 0.995006
D21: Annual Amt | E21: =E19/E20 -> 0 | F21: one year amortization

Sheet Residential Bill
A2: Schedule 101 Bill Impact
A4: Effective September 1, 2024
A6: Schedule 101 Present | F6: Schedule 101 Proposed
B7: Basic Charge | C7: Block 1 | D7: Total Bill | F7: Basic Charge | G7: Block 1 | H7: Block 2 | I7: Total Bill | K7: Bill Impact | L7: % Change
B8: ='Appendix F Pg 6'!H18 -> 15 | C8: ='Appendix F Pg 6'!H20 -> 0.93158 | F8: ='Appendix F Pg 6'!Q18 -> 20 | G8: ='Appendix F Pg 6'!Q20 -> 0.85392 | H8: 0
A9: 10 | B9: =$B$8 -> 15 | C9: =A9*$C$8 -> 9.3158 | D9: =SUM(B9:C9) -> 24.3158 | F9: =$F$8 -> 20 | G9: =A9*$G$8 -> 8.5392 | I9: =SUM(F9:H9) -> 28.5392 | K9: =I9-D9 -> 4.2234 | L9: =K9/D9 -> 0.1736895352
A10: =A9+10 -> 20 | B10: =$B$8 -> 15 | C10: 18.6316 | D10: 33.6316 | F10: =$F$8 -> 20 | G10: 17.0784 | I10: 37.0784 | K10: 3.4468 | L10: 0.1024869468
A11: =A10+10 -> 30 | B11: 15 | C11: 27.9474 | D11: 42.9474 | F11: 20 | G11: 25.6176 | I11: 45.6176 | K11: 2.6702 | L11: 0.06217372879
A12: 40 | B12: 15 | C12: 37.2632 | D12: 52.2632 | F12: 20 | G12: 34.1568 | I12: 54.1568 | K12: 1.8936 | L12: 0.03623199498
A13: 50 | B13: 15 | C13: 46.579 | D13: 61.579 | F13: 20 | G13: 42.696 | I13: 62.696 | K13: 1.117 | L13: 0.01813930074
A14: 60 | B14: 15 | C14: 55.8948 | D14: 70.8948 | F14: 20 | G14: 51.2352 | I14: 71.2352 | K14: 0.3404 | L14: 0.004801480504
A15: =ROUND('Pres & Prop Rev'!D46/'Pres & Prop Rev'!D48,0) -> 64 | B15: 15 | C15: =ROUND(A15*$C$8,2) -> 59.62 | D15: 74.62 | F15: 20 | G15: =ROUND(A15*$G$8,2) -> 54.65 | I15: =SUM(F15:H15) -> 74.65 | K15: 0.03 | L15: 0.0004020369874
A16: =A14+10 -> 70 | B16: 15 | C16: =ROUND(A16*$C$8,2) -> 65.21 | D16: 80.21 | F16: 20 | G16: =ROUND(A16*$G$8,2) -> 59.77 | I16: 79.77 | K16: =I16-D16 -> -0.44 | L16: -0.005485600299
A17: 80 | B17: 15 | C17: =A17*$C$8 -> 74.5264 | D17: 89.5264 | F17: 20 | G17: =A17*$G$8 -> 68.3136 | I17: 88.3136 | K17: -1.2128 | L17: -0.01354684205
A18: 90 | B18: 15 | C18: =A18*$C$8 -> 83.8422 | D18: 98.8422 | F18: 20 | G18: =A18*$G$8 -> 76.8528 | I18: 96.8528 | K18: -1.9894 | L18: -0.02012703076
A19: 100 | B19: 15 | C19: 93.158 | D19: 108.158 | F19: 20 | G19: 85.392 | I19: 105.392 | K19: -2.766 | L19: -0.02557369774
A20: 110 | B20: 15 | C20: 102.4738 | D20: 117.4738 | F20: 20 | G20: 93.9312 | I20: 113.9312 | K20: -3.5426 | L20: -0.03015651149
A21: 120 | B21: 15 | C21: 111.7896 | D21: 126.7896 | F21: 20 | G21: 102.4704 | I21: 122.4704 | K21: -4.3192 | L21: -0.03406588553
A22: 130 | B22: 15 | C22: 121.1054 | D22: 136.1054 | F22: 20 | G22: 111.0096 | I22: 131.0096 | K22: -5.0958 | L22: -0.03744010157
A23: 140 | B23: 15 | C23: 130.4212 | D23: 145.4212 | F23: 20 | G23: 119.5488 | I23: 139.5488 | K23: -5.8724 | L23: -0.04038200758
A24: 150 | B24: 15 | C24: 139.737 | D24: 154.737 | F24: 20 | G24: 128.088 | I24: 148.088 | K24: -6.649 | L24: -0.04296968404
A25: 160 | B25: 15 | C25: 149.0528 | D25: 164.0528 | F25: 20 | G25: 136.6272 | I25: 156.6272 | K25: -7.4256 | L25: -0.04526347615
A26: 170 | B26: 15 | C26: 158.3686 | D26: 173.3686 | F26: 20 | G26: 145.1664 | I26: 165.1664 | K26: -8.2022 | L26: -0.0473107587
A27: 180 | B27: 15 | C27: 167.6844 | D27: 182.6844 | F27: 20 | G27: 153.7056 | I27: 173.7056 | K27: -8.9788 | L27: -0.04914924318
A28: 190 | B28: 15 | C28: 177.0002 | D28: 192.0002 | F28: 20 | G28: 162.2448 | I28: 182.2448 | K28: -9.7554 | L28: -0.05080932207
A29: 200 | B29: 15 | C29: 186.316 | D29: 201.316 | F29: 20 | G29: 170.784 | I29: 190.784 | K29: -10.532 | L29: -0.05231576228
A30: 210 | B30: 15 | C30: 195.6318 | D30: 210.6318 | F30: 20 | G30: 179.3232 | I30: 199.3232 | K30: -11.3086 | L30: -0.05368894915
A31: 220 | B31: 15 | C31: 204.9476 | D31: 219.9476 | F31: 20 | G31: 187.8624 | I31: 207.8624 | K31: -12.0852 | L31: -0.05494581437
A32: 230 | B32: 15 | C32: 214.2634 | D32: 229.2634 | F32: 20 | G32: 196.4016 | I32: 216.4016 | K32: -12.8618 | L32: -0.05610053763
A33: 240 | B33: 15 | C33: 223.5792 | D33: 238.5792 | F33: 20 | G33: 204.9408 | I33: 224.9408 | K33: -13.6384 | L33: -0.05716508396
A34: 250 | B34: 15 | C34: 232.895 | D34: 247.895 | F34: 20 | G34: 213.48 | I34: 233.48 | K34: -14.415 | L34: -0.0581496198
A35: 260 | B35: 15 | C35: 242.2108 | D35: 257.2108 | F35: 20 | G35: 222.0192 | I35: 242.0192 | K35: -15.1916 | L35: -0.05906283873
A36: 270 | B36: 15 | C36: 251.5266 | D36: 266.5266 | F36: 20 | G36: 230.5584 | I36: 250.5584 | K36: -15.9682 | L36: -0.05991221889
A37: 280 | B37: 15 | C37: 260.8424 | D37: 275.8424 | F37: 20 | G37: 239.0976 | I37: 259.0976 | K37: -16.7448 | L37: -0.06070422821
A38: 290 | B38: 15 | C38: 270.1582 | D38: 285.1582 | F38: 20 | G38: 247.6368 | I38: 267.6368 | K38: -17.5214 | L38: -0.06144448941
A39: 300 | B39: 15 | C39: 279.474 | D39: 294.474 | F39: 20 | G39: 256.176 | I39: 276.176 | K39: -18.298 | L39: -0.0621379137
A40: 310 | B40: 15 | C40: 288.7898 | D40: 303.7898 | F40: 20 | G40: 264.7152 | I40: =SUM(F40:H40) -> 284.7152 | K40: -19.0746 | L40: -0.06278880989
A41: 320 | B41: 15 | C41: 298.1056 | D41: 313.1056 | F41: 20 | G41: 273.2544 | I41: 293.2544 | K41: -19.8512 | L41: -0.06340097398
A42: 330 | B42: 15 | C42: 307.4214 | D42: 322.4214 | F42: 20 | G42: 281.7936 | I42: 301.7936 | K42: -20.6278 | L42: -0.06397776326
A43: 340 | B43: 15 | C43: 316.7372 | D43: 331.7372 | F43: 20 | G43: 290.3328 | I43: 310.3328 | K43: -21.4044 | L43: -0.0645221579
A44: 350 | B44: 15 | C44: 326.053 | D44: 341.053 | F44: 20 | G44: 298.872 | I44: 318.872 | K44: -22.181 | L44: -0.06503681246
A45: 360 | B45: 15 | C45: 335.3688 | D45: 350.3688 | F45: 20 | G45: 307.4112 | I45: 327.4112 | K45: -22.9576 | L45: -0.06552409918
A46: 370 | B46: 15 | C46: 344.6846 | D46: 359.6846 | F46: 20 | G46: 315.9504 | I46: 335.9504 | K46: -23.7342 | L46: -0.06598614453
A47: 380 | B47: 15 | C47: 354.0004 | D47: 369.0004 | F47: 20 | G47: 324.4896 | I47: 344.4896 | K47: -24.5108 | L47: -0.06642486024
A48: 390 | B48: 15 | C48: 363.3162 | D48: 378.3162 | F48: 20 | G48: 333.0288 | I48: 353.0288 | K48: -25.2874 | L48: -0.06684196976
A49: 400 | B49: 15 | C49: 372.632 | D49: 387.632 | F49: 20 | G49: 341.568 | I49: 361.568 | K49: -26.064 | L49: -0.06723903083
A53: Breakeven Analysis (Base Rates - Includes Cost of Gas)
A55: Schedule 101 | F55: Schedule 111
B56: Basic Charge | C56: Block 1 | D56: Total Bill | F56: Minimum Charge | G56: Block 1 | H56: Block 2 | J56: Total Bill | L56: Bill Differential
B57: ='Appendix F Pg 6'!R18 -> 20 | C57: ='Appendix F Pg 6'!R20 -> 0.25605 | F57: ='Appendix F Pg 6'!R29 -> 71.21 | G57: 0 | H57: ='[1]Rate Design'!E29/100 -> 0.85647
A58: 10 | B58: =$B$57 -> 20 | C58: =A58*$C$57 -> 2.5605 | D58: =SUM(B58:C58) -> 22.5605 | F58: =$F$57 -> 71.21 | G58: =A58*$G$57 -> 0 | J58: =SUM(F58:I58) -> 71.21 | L58: =J58-D58 -> 48.6495
A59: =A58+10 -> 20 | B59: 20 | C59: 5.121 | D59: =SUM(B59:C59) -> 25.121 | F59: =$F$57 -> 71.21 | G59: =A59*$G$57 -> 0 | J59: =SUM(F59:I59) -> 71.21 | L59: 46.089
A60: =A59+10 -> 30 | B60: 20 | C60: 7.6815 | D60: 27.6815 | F60: 71.21 | G60: 0 | J60: 71.21 | L60: 43.5285
A61: 40 | B61: 20 | C61: 10.242 | D61: 30.242 | F61: 71.21 | G61: 0 | J61: 71.21 | L61: 40.968
A62: 50 | B62: 20 | C62: 12.8025 | D62: 32.8025 | F62: 71.21 | G62: 0 | J62: 71.21 | L62: 38.4075
A63: 60 | B63: 20 | C63: 15.363 | D63: 35.363 | F63: 71.21 | G63: 0 | J63: 71.21 | L63: 35.847
A64: 70 | B64: 20 | C64: 17.9235 | D64: 37.9235 | F64: 71.21 | G64: 0 | J64: 71.21 | L64: 33.2865
A65: 80 | B65: 20 | C65: =A65*$C$57 -> 20.484 | D65: 40.484 | F65: 71.21 | G65: 0 | J65: 71.21 | L65: 30.726
A66: 90 | B66: 20 | C66: 23.0445 | D66: 43.0445 | F66: 71.21 | G66: 0 | J66: 71.21 | L66: 28.1655
A67: 100 | B67: 20 | C67: 25.605 | D67: 45.605 | F67: 71.21 | G67: 0 | J67: 71.21 | L67: 25.605
A68: 110 | B68: 20 | C68: 28.1655 | D68: 48.1655 | F68: 71.21 | G68: 0 | J68: 71.21 | L68: 23.0445
A69: 120 | B69: 20 | C69: 30.726 | D69: 50.726 | F69: 71.21 | G69: 0 | J69: 71.21 | L69: 20.484
A70: 130 | B70: 20 | C70: 33.2865 | D70: 53.2865 | F70: 71.21 | G70: 0 | J70: 71.21 | L70: 17.9235
A71: 140 | B71: 20 | C71: 35.847 | D71: 55.847 | F71: 71.21 | G71: 0 | J71: 71.21 | L71: 15.363
A72: 150 | B72: 20 | C72: 38.4075 | D72: 58.4075 | F72: 71.21 | G72: 0 | J72: 71.21 | L72: 12.8025
A73: 160 | B73: 20 | C73: 40.968 | D73: 60.968 | F73: 71.21 | G73: 0 | J73: 71.21 | L73: 10.242
A74: 170 | B74: 20 | C74: 43.5285 | D74: 63.5285 | F74: 71.21 | G74: 0 | J74: 71.21 | L74: 7.6815
A75: 180 | B75: 20 | C75: 46.089 | D75: 66.089 | F75: 71.21 | G75: 0 | J75: 71.21 | L75: 5.121
A76: 190 | B76: 20 | C76: 48.6495 | D76: 68.6495 | F76: 71.21 | G76: 0 | J76: 71.21 | L76: 2.5605
A77: 200 | B77: 20 | C77: 51.21 | D77: 71.21 | F77: 71.21 | G77: 0 | J77: 71.21 | L77: 0
A78: 210 | B78: 20 | C78: 53.7705 | D78: 73.7705 | F78: 71.21 | G78: =200*$G$57 -> 0 | H78: =(A78-200)*$H$57 -> 8.5647 | J78: 79.7747 | L78: 6.0042
A79: 220 | B79: 20 | C79: 56.331 | D79: 76.331 | F79: 71.21 | G79: 0 | H79: =(A79-200)*$H$57 -> 17.1294 | J79: 88.3394 | L79: 12.0084
A80: 230 | B80: 20 | C80: 58.8915 | D80: 78.8915 | F80: 71.21 | G80: 0 | H80: 25.6941 | J80: 96.9041 | L80: 18.0126
A81: 240 | B81: 20 | C81: 61.452 | D81: 81.452 | F81: 71.21 | G81: 0 | H81: 34.2588 | J81: 105.4688 | L81: 24.0168
A82: 250 | B82: 20 | C82: 64.0125 | D82: 84.0125 | F82: 71.21 | G82: 0 | H82: 42.8235 | J82: 114.0335 | L82: 30.021
A83: 260 | B83: 20 | C83: 66.573 | D83: 86.573 | F83: 71.21 | G83: 0 | H83: 51.3882 | J83: 122.5982 | L83: 36.0252
A84: 270 | B84: 20 | C84: 69.1335 | D84: 89.1335 | F84: 71.21 | G84: 0 | H84: 59.9529 | J84: 131.1629 | L84: 42.0294
A85: 280 | B85: 20 | C85: 71.694 | D85: 91.694 | F85: 71.21 | G85: 0 | H85: 68.5176 | J85: 139.7276 | L85: 48.0336
A86: 290 | B86: 20 | C86: 74.2545 | D86: 94.2545 | F86: 71.21 | G86: 0 | H86: 77.0823 | J86: 148.2923 | L86: 54.0378
A87: 300 | B87: 20 | C87: 76.815 | D87: 96.815 | F87: 71.21 | G87: 0 | H87: 85.647 | J87: 156.857 | L87: 60.042
A88: 310 | B88: 20 | C88: 79.3755 | D88: 99.3755 | F88: 71.21 | G88: 0 | H88: 94.2117 | J88: 165.4217 | L88: 66.0462
A89: 320 | B89: 20 | C89: 81.936 | D89: 101.936 | F89: 71.21 | G89: 0 | H89: 102.7764 | J89: 173.9864 | L89: 72.0504
A90: 330 | B90: 20 | C90: 84.4965 | D90: 104.4965 | F90: 71.21 | G90: 0 | H90: 111.3411 | J90: 182.5511 | L90: 78.0546
A91: 340 | B91: 20 | C91: 87.057 | D91: 107.057 | F91: 71.21 | G91: 0 | H91: 119.9058 | J91: 191.1158 | L91: 84.0588
A92: 350 | B92: 20 | C92: 89.6175 | D92: 109.6175 | F92: 71.21 | G92: 0 | H92: 128.4705 | J92: 199.6805 | L92: 90.063
A93: 500 | B93: 20 | C93: 128.025 | D93: 148.025 | F93: 71.21 | G93: 0 | H93: =(A93-200)*$H$57 -> 256.941 | J93: =SUM(F93:I93) -> 328.151 | L93: 180.126

Sheet Big Schedules
A1: Idaho Gas Billing Determinants by Customer | U1: Present | Y1: Proposed
P2: 1st | Q2: 200 | R2: 1000 | S2: 10000 | W2: Total | AA2: Total
A3: ANNUAL USAGE, Sch 146 | N3: 12-mo ended | P3: 200 | Q3: 1000 | R3: 10000 | S3: 99999999 | U3: Base | V3: Monthly | W3: Base | Y3: Base | Z3: Monthly | AA3: Base
A4: Idaho | B4: 2022-01-01 | C4: 2022-02-01 | D4: 2022-03-01 | E4: 2022-04-01 | F4: 2022-05-01 | G4: 2022-06-01 | H4: 2021-07-01 | I4: 2021-08-01 | J4: 2021-09-01 | K4: 2021-10-01 | L4: 2021-11-01 | M4: 2021-12-01 | N4: Total | P4: thms/mo | Q4: thms/mo | R4: thms/mo | S4: thms/mo | U4: Revenue | V4: Minimum | W4: Revenue | Y4: Revenue | Z4: Minimum | AA4: Revenue
A5: Coeur d'Alene Resort | B5: 53429 | C5: 48105 | D5: 44290 | E5: 41615 | F5: 34989 | G5: 27448 | H5: 24055 | I5: 24251 | J5: 24978 | K5: 32221 | L5: 38100 | M5: 59166 | N5: =SUM(B5:M5) -> 452647 | P5: =P$3*12-SUMPRODUCT(--(ABS($B5:$M5)<=P$3),P$3-ABS($B5:$M5)) -> 2400 | Q5: =Q$3*12-P5-SUMPRODUCT(--(ABS($B5:$M5)<=Q$3),Q$3-ABS($B5:$M5)) -> 9600 | R5: =R$3*12-SUM($P5:Q5)-SUMPRODUCT(--(ABS($B5:$M5)<=R$3),R$3-ABS($B5:$M5)) -> 108000 | S5: =S$3*12-SUM($P5:R5)-SUMPRODUCT(--(ABS($B5:$M5)<=S$3),S$3-ABS($B5:$M5)) -> 332647 | U5: =(12*'Appendix F Pg 6'!$D$37)+(N5*(0.13441-0.00897)) -> 60380.03968 | V5: =IF(U5<$V$15,$V$15-U5,0) -> 0 | W5: =U5+V5 -> 60380.03968 | Y5: =(12*'Appendix F Pg 6'!$R$37)+(N5*'Appendix F Pg 6'!$R$39) -> 58967.78104 | Z5: =IF(N5<250000,(250000-N5)*'Appendix F Pg 6'!$R$39,0) -> 0 | AA5: =Y5+Z5 -> 58967.78104
A6: Idaho Asphalt | B6: 37272 | C6: 47212 | D6: 83613 | E6: 116823 | F6: 138176 | G6: 124935 | H6: 114701 | I6: 111647 | J6: 91126 | K6: 92895 | L6: 85237 | M6: 48485 | N6: 1092122 | P6: =P$3*12-SUMPRODUCT(--(ABS($B6:$M6)<=P$3),P$3-ABS($B6:$M6)) -> 2400 | Q6: =Q$3*12-P6-SUMPRODUCT(--(ABS($B6:$M6)<=Q$3),Q$3-ABS($B6:$M6)) -> 9600 | R6: =R$3*12-SUM($P6:Q6)-SUMPRODUCT(--(ABS($B6:$M6)<=R$3),R$3-ABS($B6:$M6)) -> 108000 | S6: =S$3*12-SUM($P6:R6)-SUMPRODUCT(--(ABS($B6:$M6)<=S$3),S$3-ABS($B6:$M6)) -> 972122 | U6: =(12*'Appendix F Pg 6'!$D$37)+(N6*(0.13441-0.00897)) -> 140595.7837 | V6: 0 | W6: 140595.7837 | Y6: =(12*'Appendix F Pg 6'!$R$37)+(N6*'Appendix F Pg 6'!$R$39) -> 137188.363 | Z6: =IF(N6<250000,(250000-N6)*'Appendix F Pg 6'!$R$39,0) -> 0 | AA6: 137188.363
A7: Idaho Forest Group LLC | B7: 80337 | C7: 39562 | D7: 64739 | E7: 48981 | F7: 21627 | G7: 25348 | H7: 165978 | I7: 13501 | J7: 53555 | K7: 20768 | L7: 23318 | M7: 64757 | N7: 622471 | P7: =P$3*12-SUMPRODUCT(--(ABS($B7:$M7)<=P$3),P$3-ABS($B7:$M7)) -> 2400 | Q7: =Q$3*12-P7-SUMPRODUCT(--(ABS($B7:$M7)<=Q$3),Q$3-ABS($B7:$M7)) -> 9600 | R7: =R$3*12-SUM($P7:Q7)-SUMPRODUCT(--(ABS($B7:$M7)<=R$3),R$3-ABS($B7:$M7)) -> 108000 | S7: =S$3*12-SUM($P7:R7)-SUMPRODUCT(--(ABS($B7:$M7)<=S$3),S$3-ABS($B7:$M7)) -> 502471 | U7: =(12*'Appendix F Pg 6'!$D$37)+(N7*(0.13441-0.00897)) -> 81682.76224 | V7: 0 | W7: 81682.76224 | Y7: =(12*'Appendix F Pg 6'!$R$37)+(N7*'Appendix F Pg 6'!$R$39) -> 79740.65272 | Z7: =IF(N7<250000,(250000-N7)*'Appendix F Pg 6'!$R$39,0) -> 0 | AA7: 79740.65272
A8: Kootenai Medical Center | B8: 79035 | C8: 71378 | D8: 64509 | E8: 62279 | F8: 57874 | G8: 48069 | H8: 43865 | I8: 48977 | J8: 48896 | K8: 58948 | L8: 63161 | M8: 81609 | N8: 728600 | P8: =P$3*12-SUMPRODUCT(--(ABS($B8:$M8)<=P$3),P$3-ABS($B8:$M8)) -> 2400 | Q8: =Q$3*12-P8-SUMPRODUCT(--(ABS($B8:$M8)<=Q$3),Q$3-ABS($B8:$M8)) -> 9600 | R8: =R$3*12-SUM($P8:Q8)-SUMPRODUCT(--(ABS($B8:$M8)<=R$3),R$3-ABS($B8:$M8)) -> 108000 | S8: =S$3*12-SUM($P8:R8)-SUMPRODUCT(--(ABS($B8:$M8)<=S$3),S$3-ABS($B8:$M8)) -> 608600 | U8: =(12*'Appendix F Pg 6'!$D$37)+(N8*(0.13441-0.00897)) -> 94995.584 | V8: 0 | W8: 94995.584 | Y8: =(12*'Appendix F Pg 6'!$R$37)+(N8*'Appendix F Pg 6'!$R$39) -> 92722.352 | Z8: =IF(N8<250000,(250000-N8)*'Appendix F Pg 6'!$R$39,0) -> 0 | AA8: 92722.352
A9: North Idaho Energy Logs | B9: 63147 | C9: 45946 | D9: 56723 | E9: 50517 | F9: 29804 | G9: 44348 | H9: 40910 | I9: 46987 | J9: 39539 | K9: 38450 | L9: 51550 | M9: 61111 | N9: 569032 | P9: =P$3*12-SUMPRODUCT(--(ABS($B9:$M9)<=P$3),P$3-ABS($B9:$M9)) -> 2400 | Q9: =Q$3*12-P9-SUMPRODUCT(--(ABS($B9:$M9)<=Q$3),Q$3-ABS($B9:$M9)) -> 9600 | R9: =R$3*12-SUM($P9:Q9)-SUMPRODUCT(--(ABS($B9:$M9)<=R$3),R$3-ABS($B9:$M9)) -> 108000 | S9: =S$3*12-SUM($P9:R9)-SUMPRODUCT(--(ABS($B9:$M9)<=S$3),S$3-ABS($B9:$M9)) -> 449032 | U9: =(12*'Appendix F Pg 6'!$D$37)+(N9*(0.13441-0.00897)) -> 74979.37408 | V9: 0 | W9: 74979.37408 | Y9: =(12*'Appendix F Pg 6'!$R$37)+(N9*'Appendix F Pg 6'!$R$39) -> 73203.99424 | Z9: =IF(N9<250000,(250000-N9)*'Appendix F Pg 6'!$R$39,0) -> 0 | AA9: 73203.99424
A10: Univ of Idaho | B10: 38141 | C10: 11693 | D10: 5797 | E10: 4891 | F10: 83847 | G10: 57639 | H10: 963 | I10: 626 | J10: 43249 | K10: 69274 | L10: 115872 | M10: 25384 | N10: 457376 | P10: =P$3*12-SUMPRODUCT(--(ABS($B10:$M10)<=P$3),P$3-ABS($B10:$M10)) -> 2400 | Q10: =Q$3*12-P10-SUMPRODUCT(--(ABS($B10:$M10)<=Q$3),Q$3-ABS($B10:$M10)) -> 9189 | R10: =R$3*12-SUM($P10:Q10)-SUMPRODUCT(--(ABS($B10:$M10)<=R$3),R$3-ABS($B10:$M10)) -> 80688 | S10: =S$3*12-SUM($P10:R10)-SUMPRODUCT(--(ABS($B10:$M10)<=S$3),S$3-ABS($B10:$M10)) -> 365099 | U10: =(12*'Appendix F Pg 6'!$D$37)+(N10*(0.13441-0.00897)) -> 60973.24544 | V10: 0 | W10: 60973.24544 | Y10: =(12*'Appendix F Pg 6'!$R$37)+(N10*'Appendix F Pg 6'!$R$39) -> 59546.23232 | Z10: =IF(N10<250000,(250000-N10)*'Appendix F Pg 6'!$R$39,0) -> 0 | AA10: 59546.23232
A11: Total ID Sch 146 | B11: =SUM(B5:B10) -> 351361 | C11: =SUM(C5:C10) -> 263896 | D11: 319671 | E11: 325106 | F11: 366317 | G11: 327787 | H11: 390472 | I11: 245989 | J11: 301343 | K11: 312556 | L11: 377238 | M11: 340512 | N11: =IF(ROUND(SUM(N5:N10),3)<>ROUND(SUM(B11:M11),3),#VALUE!,SUM(B11:M11)) -> 3922248 | U11: =SUM(U5:U10) -> 513606.7891 | V11: =SUM(V5:V10) -> 0 | W11: =SUM(W5:W10) -> 513606.7891 | Y11: =SUM(Y5:Y10) -> 501369.3754 | Z11: =SUM(Z5:Z10) -> 0 | AA11: =SUM(AA5:AA10) -> 501369.3754
N12: =N11-N13 -> 83210
A13: Revenue Runs | B13: ='Rev Runs CY'!C24 -> 340512 | C13: ='Rev Runs CY'!D24 -> 351361 | D13: ='Rev Runs CY'!E24 -> 263896 | E13: ='Rev Runs CY'!F24 -> 319671 | F13: ='Rev Runs CY'!G24 -> 325106 | G13: ='Rev Runs CY'!H24 -> 344690 | H13: ='Rev Runs CY'!I24 -> 266204 | I13: ='Rev Runs CY'!J24 -> 390472 | J13: ='Rev Runs CY'!K24 -> 245989 | K13: ='Rev Runs CY'!L24 -> 301343 | L13: ='Rev Runs CY'!M24 -> 312556 | M13: ='Rev Runs CY'!N24 -> 377238 | N13: =SUM(B13:M13) -> 3839038
A14: Unbilled | B14: ='Rev Runs CY'!D47 -> 351361 | C14: ='Rev Runs CY'!E47 -> 263896 | D14: ='Rev Runs CY'!F47 -> 319671 | E14: ='Rev Runs CY'!G47 -> 325106 | F14: ='Rev Runs CY'!H47 -> 344690 | G14: ='Rev Runs CY'!I47 -> 327850 | H14: ='Rev Runs CY'!J47 -> 390472 | I14: ='Rev Runs CY'!K47 -> 233542 | J14: ='Rev Runs CY'!L47 -> 301097 | K14: ='Rev Runs CY'!M47 -> 312471 | L14: ='Rev Runs CY'!N47 -> 377072 | M14: ='Rev Runs CY'!O47 -> 340512 | N14: =SUM(B14:M14) -> 3887740
A15: Unbilled Reversal | B15: ='Rev Runs CY'!D52 -> -340512 | C15: ='Rev Runs CY'!E52 -> -351361 | D15: ='Rev Runs CY'!F52 -> -263896 | E15: ='Rev Runs CY'!G52 -> -319671 | F15: ='Rev Runs CY'!H52 -> -325106 | G15: ='Rev Runs CY'!I52 -> -344690 | H15: ='Rev Runs CY'!J52 -> -266134 | I15: ='Rev Runs CY'!K52 -> -390472 | J15: ='Rev Runs CY'!L52 -> -233542 | K15: ='Rev Runs CY'!M52 -> -301097 | L15: ='Rev Runs CY'!N52 -> -312471 | M15: ='Rev Runs CY'!O52 -> -377072 | N15: =SUM(B15:M15) -> -3826024 | U15: =0.13441-0.00897 -> 0.12544 | V15: 36603
A16: Unbilled True-Up | B16: =B11-B14-(B15+B13)-B17 -> 0 | C16: 0 | D16: 0 | E16: 0 | F16: =F11-F14-(F15+F13)-F17 -> 0 | G16: =G11-G14-(G15+G13)-G17 -> -63 | H16: -70 | I16: 12447 | J16: -12201 | K16: -161 | L16: 81 | M16: -166 | N16: =SUM(B16:M16) -> -133
A17: Sched 146 Usage Adj (IFG) | B17: 0 | C17: 0 | D17: 0 | E17: 0 | F17: 21627 | G17: 0 | H17: 0 | I17: 0 | J17: 0 | K17: 0 | L17: 0 | M17: 0 | N17: =SUM(B17:M17) -> 21627
A18: Total Adj Calendar Sch 146 | B18: =SUM(B13:B17) -> 351361 | C18: 263896 | D18: 319671 | E18: 325106 | F18: 366317 | G18: 327787 | H18: 390472 | I18: 245989 | J18: 301343 | K18: 312556 | L18: 377238 | M18: 340512 | N18: 3922248
B19: =B11-B18 -> 0 | C19: 0 | D19: 0 | E19: 0 | F19: 0 | G19: 0 | H19: 0 | I19: 0 | J19: 0 | K19: 0 | L19: 0 | M19: 0 | N19: 0
P20: 1st | Q20: 200 | R20: 1000 | S20: 10000
A21: ANNUAL USAGE, Sch 122 | N21: 12-mo ended | P21: 200 | Q21: 1000 | R21: 10000 | S21: 99999999
A22: Idaho | B22: =B$4 -> 2022-01-01 | C22: =C$4 -> 2022-02-01 | D22: 2022-03-01 | E22: 2022-04-01 | F22: 2022-05-01 | G22: 2022-06-01 | H22: 2021-07-01 | I22: 2021-08-01 | J22: 2021-09-01 | K22: 2021-10-01 | L22: 2021-11-01 | M22: 2021-12-01 | N22: Total | P22: thms/mo | Q22: thms/mo | R22: thms/mo | S22: thms/mo
N23: =SUM(B23:M23) -> 0 | P23: =P$21*12-SUMPRODUCT(--($B23:$M23<=P$21),P$21-$B23:$M23) -> 0 | Q23: =Q$21*12-SUM($P23:P23)-SUMPRODUCT(--($B23:$M23<=Q$21),Q$21-$B23:$M23) -> 0 | R23: =R$21*12-SUM($P23:Q23)-SUMPRODUCT(--($B23:$M23<=R$21),R$21-$B23:$M23) -> 0 | S23: =S$21*12-SUM($P23:R23)-SUMPRODUCT(--($B23:$M23<=S$21),S$21-$B23:$M23) -> 0
A25: Total ID Sch 122 | B25: =SUM(B23:B24) -> 0 | C25: 0 | D25: 0 | E25: 0 | F25: 0 | G25: 0 | H25: 0 | I25: 0 | J25: 0 | K25: 0 | L25: 0 | M25: 0 | N25: =IF(ROUND(SUM(N23:N24),3)<>ROUND(SUM(B25:M25),3),#VALUE!,SUM(B25:M25)) -> 0 | P25: =SUM(P23:P24) -> 0 | Q25: =SUM(Q23:Q24) -> 0 | R25: =SUM(R23:R24) -> 0 | S25: =SUM(S23:S24) -> 0
S26: =SUM(P25:S25) -> 0
A27: Revenue Runs | E27: 0 | F27: 0 | G27: 0 | I27: 0 | J27: 0 | K27: 0 | L27: 0 | M27: 0 | N27: =SUM(B27:M27) -> 0 | P27: =P$21*12-SUMPRODUCT(--($B27:$M27<=P$21),P$21-$B27:$M27) -> 0 | Q27: =Q$21*12-SUM($P27:P27)-SUMPRODUCT(--($B27:$M27<=Q$21),Q$21-$B27:$M27) -> 0 | R27: =R$21*12-SUM($P27:Q27)-SUMPRODUCT(--($B27:$M27<=R$21),R$21-$B27:$M27) -> 0 | S27: =S$21*12-SUM($P27:R27)-SUMPRODUCT(--($B27:$M27<=S$21),S$21-$B27:$M27) -> 0
E28: 0 | F28: 0 | G28: 0 | I28: 0 | J28: 0 | K28: 0 | L28: 0 | M28: 0 | N28: =SUM(B28:M28) -> 0 | P28: =-P27 -> 0 | Q28: =-Q27 -> 0 | R28: =-R27 -> 0 | S28: =-S27 -> 0
N29: =SUM(B29:M29) -> 0
A30: Total ID Sch 122 | B30: =SUM(B27:B29) -> 0 | C30: =SUM(C27:C29) -> 0 | D30: 0 | E30: 0 | F30: 0 | G30: 0 | H30: 0 | I30: 0 | J30: 0 | K30: 0 | L30: 0 | M30: 0 | N30: 0
B31: =B25-B30 -> 0 | C31: =C25-C30 -> 0 | D31: 0 | E31: 0 | F31: 0 | G31: 0 | H31: 0 | I31: 0 | J31: 0 | K31: 0 | L31: 0 | M31: 0 | N31: 0
A33: ANNUAL USAGE, Sch 132 | N33: 12-mo ended
A34: Idaho | B34: =B$4 -> 2022-01-01 | C34: =C$4 -> 2022-02-01 | D34: 2022-03-01 | E34: 2022-04-01 | F34: 2022-05-01 | G34: 2022-06-01 | H34: 2021-07-01 | I34: 2021-08-01 | J34: 2021-09-01 | K34: 2021-10-01 | L34: 2021-11-01 | M34: 2021-12-01 | N34: Total
A35: St Joseph Regional | G35: 0 | H35: 0 | I35: 0 | J35: 0 | K35: 0 | L35: 0 | M35: 0 | N35: =SUM(B35:M35) -> 0
A37: Total ID Sch 132 | B37: =SUM(B35:B36) -> 0 | C37: 0 | D37: 0 | E37: 0 | F37: 0 | G37: 0 | H37: 0 | I37: 0 | J37: 0 | K37: 0 | L37: 0 | M37: 0 | N37: =IF(ROUND(SUM(N35:N36),3)<>ROUND(SUM(B37:M37),3),#VALUE!,SUM(B37:M37)) -> 0
A39: Revenue Runs | B39: ='Rev Runs CY'!C23 -> 0 | C39: ='Rev Runs CY'!D23 -> 0 | D39: ='Rev Runs CY'!E23 -> 0 | E39: ='Rev Runs CY'!F23 -> 0 | F39: ='Rev Runs CY'!G23 -> 0 | G39: ='Rev Runs CY'!H23 -> 0 | H39: ='Rev Runs CY'!I23 -> 0 | I39: ='Rev Runs CY'!J23 -> 0 | J39: ='Rev Runs CY'!K23 -> 0 | K39: ='Rev Runs CY'!L23 -> 0 | L39: ='Rev Runs CY'!M23 -> 0 | M39: ='Rev Runs CY'!N23 -> 0 | N39: =SUM(B39:M39) -> 0
A40: St Joseph Regional | N40: =SUM(B40:M40) -> 0 | P40: =P$12*12-SUMPRODUCT(--(ABS($B40:$M40)<=P$12),P$12-ABS($B40:$M40)) -> 0 | Q40: =Q$12*12-P40-SUMPRODUCT(--(ABS($B40:$M40)<=Q$12),Q$12-ABS($B40:$M40)) -> 0 | R40: =R$12*12-SUM($P40:Q40)-SUMPRODUCT(--(ABS($B40:$M40)<=R$12),R$12-ABS($B40:$M40)) -> 0 | S40: =S$12*12-SUM($P40:R40)-SUMPRODUCT(--(ABS($B40:$M40)<=S$12),S$12-ABS($B40:$M40)) -> 0
A41: Total ID Sch 132 | B41: =B39+B40 -> 0 | C41: =C39+C40 -> 0 | D41: 0 | E41: 0 | F41: 0 | G41: 0 | H41: 0 | I41: 0 | J41: 0 | K41: 0 | L41: 0 | M41: 0 | N41: 0
B42: =B37+B41 -> 0 | C42: =C37+C41 -> 0 | D42: 0 | E42: 0 | F42: 0 | G42: 0 | H42: 0 | I42: 0 | J42: 0 | K42: 0 | L42: 0 | M42: 0 | N42: 0
A44: ANNUAL USAGE, Sch 147 | N44: 12-mo ended
A45: Idaho | B45: =B$4 -> 2022-01-01 | C45: =C$4 -> 2022-02-01 | D45: 2022-03-01 | E45: 2022-04-01 | F45: 2022-05-01 | G45: 2022-06-01 | H45: 2021-07-01 | I45: 2021-08-01 | J45: 2021-09-01 | K45: 2021-10-01 | L45: 2021-11-01 | M45: 2021-12-01 | N45: Total
A46: Aleris Recycling Inc (IMCO) | B46: 117339 | C46: 124467 | D46: 111052 | E46: 121849 | F46: 100276 | G46: 133134 | H46: 106450 | I46: 83606 | J46: 89292 | K46: 104566 | L46: 113268 | M46: 108921 | N46: =SUM(B46:M46) -> 1314220
A48: Total ID Sch 147 | B48: =SUM(B46:B47) -> 117339 | C48: 124467 | D48: 111052 | E48: 121849 | F48: 100276 | G48: 133134 | H48: 106450 | I48: 83606 | J48: 89292 | K48: 104566 | L48: 113268 | M48: 108921 | N48: =IF(ROUND(SUM(N46:N47),3)<>ROUND(SUM(B48:M48),3),#VALUE!,SUM(B48:M48)) -> 1314220
A50: Revenue Runs | B50: ='Rev Runs CY'!C25 -> 117339 | C50: ='Rev Runs CY'!D25 -> 124467 | D50: ='Rev Runs CY'!E25 -> 111052 | E50: ='Rev Runs CY'!F25 -> 121849 | F50: ='Rev Runs CY'!G25 -> 100276 | G50: ='Rev Runs CY'!H25 -> 133134 | H50: ='Rev Runs CY'!I25 -> 106450 | I50: ='Rev Runs CY'!J25 -> 83606 | J50: ='Rev Runs CY'!K25 -> 89292 | K50: ='Rev Runs CY'!L25 -> 104566 | L50: ='Rev Runs CY'!M25 -> 113268 | M50: ='Rev Runs CY'!N25 -> 108921 | N50: =SUM(B50:M50) -> 1314220 | P50: 200 | Q50: 1000 | R50: 10000 | S50: Over
N51: =SUM(B51:M51) -> 0 | P51: =P$21*12-SUMPRODUCT(--(ABS($B51:$M51)<=P$21),P$21-ABS($B51:$M51)) -> 0 | Q51: =Q$21*12-P51-SUMPRODUCT(--(ABS($B51:$M51)<=Q$21),Q$21-ABS($B51:$M51)) -> 0 | R51: =R$21*12-SUM($P51:Q51)-SUMPRODUCT(--(ABS($B51:$M51)<=R$21),R$21-ABS($B51:$M51)) -> 0 | S51: =S$21*12-SUM($P51:R51)-SUMPRODUCT(--(ABS($B51:$M51)<=S$21),S$21-ABS($B51:$M51)) -> 0
A52: Total ID Sch 147 | B52: =B50+B51 -> 117339 | C52: 124467 | D52: 111052 | E52: 121849 | F52: 100276 | G52: 133134 | H52: 106450 | I52: 83606 | J52: 89292 | K52: 104566 | L52: 113268 | M52: 108921 | N52: 1314220
B53: =B48-B52 -> 0 | C53: =C48-C52 -> 0 | D53: 0 | E53: 0 | F53: 0 | G53: 0 | H53: 0 | I53: 0 | J53: 0 | K53: 0 | L53: 0 | M53: 0 | N53: 0
A55: ANNUAL USAGE, Sch 159 | N55: 12-mo ended
A56: Idaho | B56: =B$4 -> 2022-01-01 | C56: =C$4 -> 2022-02-01 | D56: 2022-03-01 | E56: 2022-04-01 | F56: 2022-05-01 | G56: 2022-06-01 | H56: 2021-07-01 | I56: 2021-08-01 | J56: 2021-09-01 | K56: 2021-10-01 | L56: 2021-11-01 | M56: 2021-12-01 | N56: Total
A57: Clearwater 159 | B57: ='Rev Runs CY'!C26 -> 6474084 | C57: ='Rev Runs CY'!D26 -> 4301405 | D57: ='Rev Runs CY'!E26 -> 3452542 | E57: ='Rev Runs CY'!F26 -> 3568211 | F57: ='Rev Runs CY'!G26 -> 3329709 | G57: ='Rev Runs CY'!H26 -> 4342218 | H57: ='Rev Runs CY'!I26 -> 3496844 | I57: ='Rev Runs CY'!J26 -> 3116526 | J57: ='Rev Runs CY'!K26 -> 4215620 | K57: ='Rev Runs CY'!L26 -> 4711037 | L57: ='Rev Runs CY'!M26 -> 4858210 | M57: ='Rev Runs CY'!N26 -> 6046477 | N57: =SUM(B57:M57) -> 51912883
A59: Total ID Sch 159 | B59: =SUM(B57:B58) -> 6474084 | C59: 4301405 | D59: 3452542 | E59: 3568211 | F59: 3329709 | G59: 4342218 | H59: 3496844 | I59: 3116526 | J59: 4215620 | K59: 4711037 | L59: 4858210 | M59: 6046477 | N59: =IF(ROUND(SUM(N57:N58),3)<>ROUND(SUM(B59:M59),3),#VALUE!,SUM(B59:M59)) -> 51912883
A61: Revenue Runs | B61: ='Rev Runs CY'!C26 -> 6474084 | C61: ='Rev Runs CY'!D26 -> 4301405 | D61: ='Rev Runs CY'!E26 -> 3452542 | E61: ='Rev Runs CY'!F26 -> 3568211 | F61: ='Rev Runs CY'!G26 -> 3329709 | G61: ='Rev Runs CY'!H26 -> 4342218 | H61: ='Rev Runs CY'!I26 -> 3496844 | I61: ='Rev Runs CY'!J26 -> 3116526 | J61: ='Rev Runs CY'!K26 -> 4215620 | K61: ='Rev Runs CY'!L26 -> 4711037 | L61: ='Rev Runs CY'!M26 -> 4858210 | M61: ='Rev Runs CY'!N26 -> 6046477 | N61: =SUM(B61:M61) -> 51912883
B62: =B59-B61 -> 0 | C62: 0 | D62: 0 | E62: 0 | F62: 0 | G62: 0 | H62: 0 | I62: 0 | J62: 0 | K62: 0 | L62: 0 | M62: 0 | N62: 0
A63: Actual Revenue check | B63: 6166.67 | C63: 6166.67 | D63: 6166.67 | E63: 6166.67 | F63: 6166.67 | G63: 6166.67 | H63: 6166.67 | I63: 6166.67 | J63: 6166.67 | K63: 6166.67 | L63: 6166.67 | M63: 6166.67 | N63: =SUM(B63:M63) -> 74000.04
B65: =B56 -> 2022-01-01 | C65: =C56 -> 2022-02-01 | D65: 2022-03-01 | E65: 2022-04-01 | F65: 2022-05-01 | G65: 2022-06-01 | H65: 2021-07-01 | I65: 2021-08-01 | J65: 2021-09-01 | K65: 2021-10-01 | L65: 2021-11-01 | M65: 2021-12-01
A66: Pro-Forma Revenue | B66: 6166.67 | C66: 6166.67 | D66: 6166.67 | E66: 6166.67 | F66: 6166.67 | G66: 6166.67 | H66: 6166.67 | I66: 6166.67 | J66: 6166.67 | K66: 6166.67 | L66: 6166.67 | M66: 6166.67 | N66: =SUM(B66:M66) -> 74000.04

Sheet Rev Runs CY
A2: Weather Norm Sch/Class Rev 12 ME Report for 12ME 06.2022
C3: Meters
B4: Period | C4: 202201 | D4: 202202 | E4: 202203 | F4: 202204 | G4: 202205 | H4: 202206 | I4: 202107 | J4: 202108 | K4: 202109 | L4: 202110 | M4: 202111 | N4: 202112 | O4: 12 Month Average
A5: Rate Schedule Num | O5: Average | P5: Total | Q5: Check to Bill Determ Tab
A6: 101 | B6: 101 | C6: 86698 | D6: 88299 | E6: 96640 | F6: 90163 | G6: 90894 | H6: 91039 | I6: 88760 | J6: 88922 | K6: 89176 | L6: 89465 | M6: 89735 | N6: 89898 | O6: =AVERAGE(C6:N6) -> 89974.08333 | P6: =SUM(C6:N6) -> 1079689 | Q6: =P6-'Bill Determ'!C8 -> 0
A7: 111 | B7: 111 | C7: 1440 | D7: 1497 | E7: 1759 | F7: 1547 | G7: 1565 | H7: 1570 | I7: 1552 | J7: 1571 | K7: 1547 | L7: 1552 | M7: 1548 | N7: 1555 | O7: =AVERAGE(C7:N7) -> 1558.583333 | P7: =SUM(C7:N7) -> 18703 | Q7: =P7+P8-'Bill Determ'!G12 -> 0
A8: 112 | B8: 112 | C8: 2 | D8: 2 | E8: 2 | F8: 2 | G8: 2 | H8: 2 | I8: 2 | J8: 2 | K8: 2 | L8: 2 | M8: 2 | N8: 2 | O8: 2 | P8: 24
A9: 132 | B9: 132 | P9: 0 | Q9: =P9-'Bill Determ'!C25 -> 0
A10: 146 | B10: 146 | C10: 6 | D10: 6 | E10: 6 | F10: 6 | G10: 6 | H10: 6 | I10: 6 | J10: 6 | K10: 6 | L10: 6 | M10: 6 | N10: 6 | O10: 6 | P10: 72 | Q10: =P10-'Bill Determ'!C29 -> 0
A11: 147 | B11: 147 | C11: 1 | D11: 1 | E11: 1 | F11: 1 | G11: 1 | H11: 1 | I11: 1 | J11: 1 | K11: 1 | L11: 1 | M11: 1 | N11: 1 | O11: 1 | P11: 12 | Q11: =P11-'Bill Determ'!C32 -> 0
A12: 159 | B12: 159 | C12: 1 | D12: 1 | E12: 1 | F12: 1 | G12: 1 | H12: 1 | I12: 1 | J12: 1 | K12: 1 | L12: 1 | M12: 1 | N12: 1 | O12: 1 | P12: 12 | Q12: =P12-'Bill Determ'!C35 -> 0
A13: Total for ID | B13: Total | C13: =SUM(C6:C12) -> 88148 | D13: =SUM(D6:D12) -> 89806 | E13: 98409 | F13: 91720 | G13: 92469 | H13: 92619 | I13: 90322 | J13: 90503 | K13: 90733 | L13: 91027 | M13: 91293 | N13: 91463 | O13: =SUM(O6:O12) -> 91542.66667 | P13: =SUM(P6:P12) -> 1098512
B14: Total per Bill Determ Report | C14: 88148 | D14: 89806 | E14: 98409 | F14: 91720 | G14: 92469 | H14: 92619 | I14: 90322 | J14: 90503 | K14: 90733 | L14: 91027 | M14: 91293 | N14: 91463
B15: Check | C15: =C13-C14 -> 0 | D15: =D13-D14 -> 0 | E15: 0 | F15: 0 | G15: 0 | H15: 0 | I15: 0 | J15: 0 | K15: 0 | L15: 0 | M15: 0 | N15: 0
C17: Usage
B18: Period | C18: 202201 | D18: 202202 | E18: 202203 | F18: 202204 | G18: 202205 | H18: 202206 | I18: 202107 | J18: 202108 | K18: 202109 | L18: 202110 | M18: 202111 | N18: 202112
A19: Rate Schedule Num | O19: Total | P19: Per 12ME 202206 Normalized Usage | Q19: Check
A20: 101 | B20: 101 | C20: 12777739.25 | D20: 10888988.02 | E20: 10007004.62 | F20: 6675601.326 | G20: 5133720.666 | H20: 2818953.478 | I20: 1147387.92 | J20: 1027420.046 | K20: 1300221.02 | L20: 2867654.558 | M20: 5979568.891 | N20: 9402764.414 | O20: =SUM(C20:N20) -> 70027024.2 | P20: 70027024.2 | Q20: =P20-O20 -> 0
A21: 111 | B21: 111 | C21: 3800925.764 | D21: 3425607.183 | E21: 3411362.324 | F21: 2307805.877 | G21: 2054432.313 | H21: 1467322.596 | I21: 907262.64 | J21: 903343.9176 | K21: 1011581.795 | L21: 1366263.796 | M21: 2139277.703 | N21: 3011042.572 | O21: =SUM(C21:N21) -> 25806228.48 | P21: 25806228.48 | Q21: =P21-O21 -> 0
A22: 112 | B22: 112 | C22: 1203.93 | D22: 1265.375 | E22: 993.392 | F22: 15476.928 | G22: 84208.546 | H22: 60746.813 | I22: 43194.895 | J22: 42556.406 | K22: 44795.996 | L22: 68952.432 | M22: 55105.071 | N22: 13144.323 | O22: 431644.107 | P22: 431644.107 | Q22: 0
A23: 132 | B23: 132 | O23: 0 | P23: 0 | Q23: 0
A24: 146 | B24: 146 | C24: 340512 | D24: 351361 | E24: 263896 | F24: 319671 | G24: 325106 | H24: 344690 | I24: 266204 | J24: 390472 | K24: 245989 | L24: 301343 | M24: 312556 | N24: 377238 | O24: 3839038 | P24: 3839038 | Q24: 0
A25: 147 | B25: 147 | C25: 117339 | D25: 124467 | E25: 111052 | F25: 121849 | G25: 100276 | H25: 133134 | I25: 106450 | J25: 83606 | K25: 89292 | L25: 104566 | M25: 113268 | N25: 108921 | O25: 1314220 | P25: 1314220 | Q25: 0
A26: 159 | B26: 159 | C26: 6474084 | D26: 4301405 | E26: 3452542 | F26: 3568211 | G26: 3329709 | H26: 4342218 | I26: 3496844 | J26: 3116526 | K26: 4215620 | L26: 4711037 | M26: 4858210 | N26: 6046477 | O26: 51912883 | P26: 51912883 | Q26: 0
A27: Total for ID | B27: Total | C27: =SUM(C20:C26) -> 23511803.94 | D27: =SUM(D20:D26) -> 19093093.57 | E27: 17246850.33 | F27: 13008615.13 | G27: 11027452.53 | H27: 9167064.887 | I27: 5967343.455 | J27: 5563924.369 | K27: 6907499.81 | L27: 9419816.786 | M27: 13457985.67 | N27: 18959587.31 | O27: 153331037.8 | P27: 153331037.8 | Q27: 0
B28: Total per Bill Determ Report | C28: 23511803.94 | D28: 19093093.57 | E28: 17246850.33 | F28: 13008615.13 | G28: 11027452.53 | H28: 9167064.887 | I28: 5967343.455 | J28: 5563924.369 | K28: 6907499.81 | L28: 9419816.786 | M28: 13457985.67 | N28: 18959587.31
B29: Check | C29: =C27-C28 -> 0 | D29: 0 | E29: 0 | F29: 0 | G29: 0 | H29: 0 | I29: 0 | J29: 0 | K29: 0 | L29: 0 | M29: 0 | N29: 0
A39: Report Name: Rev Norm Unbilled 12 ME Report for 12 ME 06.2022
D42: Usage
C43: Period | D43: 202201 | E43: 202202 | F43: 202203 | G43: 202204 | H43: 202205 | I43: 202206 | J43: 202107 | K43: 202108 | L43: 202109 | M43: 202110 | N43: 202111 | O43: 202112 | P43: 12 Month Total
A44: Source Id | B44: Rate Schedule Num
A45: REVUNBL-G | B45: 101 | D45: 6096027 | E45: 5454469 | F45: 2874189 | G45: 2861803 | H45: 1730648 | I45: 760654 | J45: 574868 | K45: 686300 | L45: 1045776 | M45: 2903643 | N45: 4612760 | O45: 6890293 | P45: =SUM(D45:O45) -> 36491430
B46: 111 | D46: 1683439 | E46: 1606594 | F46: 916232 | G46: 928548 | H46: 647172 | I46: 370330 | J46: 422775 | K46: 562058 | L46: 757204 | M46: 1280637 | N46: 1537108 | O46: 2054753 | P46: =SUM(D46:O46) -> 12766850
B47: 146 | D47: 351361 | E47: 263896 | F47: 319671 | G47: 325106 | H47: 344690 | I47: 327850 | J47: 390472 | K47: 233542 | L47: 301097 | M47: 312471 | N47: 377072 | O47: 340512 | P47: 3887740
B48: 147 | D48: 124467 | E48: 111052 | F48: 121849 | G48: 100276 | H48: 132757 | I48: 154203 | J48: 83606 | K48: 95610 | L48: 104442 | M48: 113250 | N48: 108850 | O48: 117339 | P48: 1367701
B49: Total for REVUNBL-G | D49: =SUM(D45:D48) -> 8255294 | E49: =SUM(E45:E48) -> 7436011 | F49: 4231941 | G49: 4215733 | H49: 2855267 | I49: 1613037 | J49: 1471721 | K49: 1577510 | L49: 2208519 | M49: 4610001 | N49: 6635790 | O49: 9402897 | P49: 54513721
A50: REVUNBL-GR | B50: 101 | D50: -6890293 | E50: -6096027 | F50: -5454469 | G50: -2874189 | H50: -2861803 | I50: -1730648 | J50: -688490 | K50: -574868 | L50: -686300 | M50: -1045776 | N50: -2903643 | O50: -4612760 | P50: -36419266
B51: 111 | D51: -2054753 | E51: -1683439 | F51: -1606594 | G51: -916232 | H51: -928548 | I51: -647172 | J51: -396052 | K51: -422775 | L51: -562058 | M51: -757204 | N51: -1280637 | O51: -1537108 | P51: -12792572
B52: 146 | D52: -340512 | E52: -351361 | F52: -263896 | G52: -319671 | H52: -325106 | I52: -344690 | J52: -266134 | K52: -390472 | L52: -233542 | M52: -301097 | N52: -312471 | O52: -377072 | P52: -3826024
B53: 147 | D53: -117339 | E53: -124467 | F53: -111052 | G53: -121849 | H53: -100276 | I53: -132757 | J53: -106430 | K53: -83606 | L53: -95610 | M53: -104442 | N53: -113250 | O53: -108850 | P53: -1319928
B54: Total for REVUNBL-GR | D54: =SUM(D50:D53) -> -9402897 | E54: =SUM(E50:E53) -> -8255294 | F54: -7436011 | G54: -4231941 | H54: -4215733 | I54: -2855267 | J54: -1457106 | K54: -1471721 | L54: -1577510 | M54: -2208519 | N54: -4610001 | O54: -6635790 | P54: -54357790
A55: Total for ID | D55: =D49+D54 -> -1147603 | E55: =E49+E54 -> -819283 | F55: -3204070 | G55: -16208 | H55: -1360466 | I55: -1242230 | J55: 14615 | K55: 105789 | L55: 631009 | M55: 2401482 | N55: 2025789 | O55: 2767107 | P55: 155931
C56: Total per Bill Determ Report | D56: -1147603 | E56: -819283 | F56: -3204070 | G56: -16208 | H56: -1360466 | I56: -1242230 | J56: 14615 | K56: 105789 | L56: 631009 | M56: 2401482 | N56: 2025789 | O56: 2767107
C57: Check | D57: =D55-D56 -> 0 | E57: 0 | F57: 0 | G57: 0 | H57: 0 | I57: 0 | J57: 0 | K57: 0 | L57: 0 | M57: 0 | N57: 0 | O57: 0
P59: =P45+P50 -> 72164 | Q59: Schedule 101
B60: Unbilled Adjustment | P60: =P46+P51 -> -25722 | Q60: Schedule 111
D61: 202201 | E61: 202202 | F61: 202203 | G61: 202204 | H61: 202205 | I61: 202206 | J61: 202107 | K61: 202108 | L61: 202109 | M61: 202110 | N61: 202111 | O61: 202112 | Q61: Per 12ME 062022 Normalized Usage | R61: Check
B62: 101 | D62: =D45+D50 -> -794266 | E62: =E45+E50 -> -641558 | F62: -2580280 | G62: -12386 | H62: -1131155 | I62: -969994 | J62: -113622 | K62: 111432 | L62: 359476 | M62: 1857867 | N62: 1709117 | O62: 2277533 | P62: =SUM(D62:O62) -> 72164 | Q62: 72164 | R62: =Q62-P62 -> 0
B63: 111 | D63: =D46+D51 -> -371314 | E63: =E46+E51 -> -76845 | F63: -690362 | G63: 12316 | H63: -281376 | I63: -276842 | J63: 26723 | K63: 139283 | L63: 195146 | M63: 523433 | N63: 256471 | O63: 517645 | P63: =SUM(D63:O63) -> -25722 | Q63: -25722 | R63: =Q63-P63 -> 0
B64: 146 | D64: =D47+D52 -> 10849 | E64: =E47+E52 -> -87465 | F64: =F47+F52 -> 55775 | G64: 5435 | H64: 19584 | I64: -16840 | J64: 124338 | K64: -156930 | L64: 67555 | M64: 11374 | N64: =N47+N52 -> 64601 | O64: -36560 | P64: =SUM(D64:O64) -> 61716 | Q64: 61716 | R64: =Q64-P64 -> 0
B65: 147 | D65: =D48+D53 -> 7128 | E65: =E48+E53 -> -13415 | F65: 10797 | G65: -21573 | H65: 32481 | I65: 21446 | J65: -22824 | K65: 12004 | L65: 8832 | M65: 8808 | N65: -4400 | O65: 8489 | P65: =SUM(D65:O65) -> 47773 | Q65: 47773 | R65: =Q65-P65 -> 0
D66: =SUM(D62:D65) -> -1147603 | E66: =SUM(E62:E65) -> -819283 | F66: -3204070 | G66: -16208 | H66: -1360466 | I66: -1242230 | J66: 14615 | K66: 105789 | L66: 631009 | M66: 2401482 | N66: 2025789 | O66: 2767107 | P66: =SUM(P62:P65) -> 155931 | Q66: 155931 | R66: =Q66-P66 -> 0
E70: =D47+E52 -> 0 | F70: =E47+F52 -> 0 | G70: =F47+G52 -> 0 | H70: =G47+H52 -> 0 | I70: =H47+I52 -> 0 | K70: =J47+K52 -> 0 | L70: =K47+L52 -> 0 | M70: =L47+M52 -> 0 | N70: =M47+N52 -> 0

Sheet Block Analysis
D5: 202201 | E5: =D5+1 -> 202202 | F5: =E5+1 -> 202203 | G5: 202204 | H5: 202205 | I5: 202206 | J5: 202107 | K5: 202108 | L5: 202109 | M5: 202110 | N5: 202111 | O5: 202112 | P5: YTD
A6: 0111 | B6: BASIC CHARGE GAS | D6: 0 | E6: 0 | F6: 0 | G6: 0 | H6: 0 | I6: 0 | J6: 0 | K6: 0 | L6: 0 | M6: 0 | N6: 0 | O6: 0 | P6: =SUM(D6:O6) -> 0
B7: NA | D7: 0 | E7: 0 | F7: 0 | G7: 0 | H7: 0 | I7: 0 | J7: 0 | K7: 0 | L7: 0 | M7: 0 | N7: 0 | O7: 0 | P7: 0
B8: RIDER 150 | D8: -88 | E8: 0 | F8: 0 | G8: 0 | H8: 0 | I8: 0 | J8: 0 | K8: 0 | L8: -239 | M8: 0 | N8: -16 | O8: 0 | P8: -343
B9: RIDER 155 | D9: 0 | E9: 0 | F9: 0 | G9: 0 | H9: 0 | I9: 0 | J9: 0 | K9: 0 | L9: 0 | M9: 0 | N9: 0 | O9: 0 | P9: 0
B10: RIDER 191 | D10: 0 | E10: 0 | F10: 0 | G10: 0 | H10: 0 | I10: 0 | J10: 0 | K10: 0 | L10: 0 | M10: 0 | N10: 0 | O10: 0 | P10: 0
B11: RIDER 197 | D11: 0 | E11: 0 | F11: 0 | G11: 0 | H11: 0 | I11: 0 | J11: 0 | K11: 0 | L11: 0 | M11: 0 | N11: 0 | O11: 0 | P11: 0
B12: THERMS BLOCK 1 | D12: =284128.90681+D8 -> 284040.9068 | E12: 295876.0892 | F12: 346320.966 | G12: 303873.3619 | H12: 302650.8669 | I12: 276186.1997 | J12: 195638.8805 | K12: 189669.4868 | L12: =209450.96251+L8 -> 209211.9625 | M12: 267475.2496 | N12: =301280.69327+N8 -> 301264.6933 | O12: 307651.3455 | P12: 3279860.009
B13: THERMS BLOCK 2 | D13: 997999.0123 | E13: 1002299.739 | F13: 1089366.795 | G13: 825927.3028 | H13: 716517.514 | I13: 495499.4504 | J13: 302102.2048 | K13: 294615.0131 | L13: 329976.9857 | M13: 460128.0535 | N13: 753625.9617 | O13: 967960.5083 | P13: 8236018.54
B14: THERMS BLOCK 3 | D14: 2001075.746 | E14: 1718455.969 | F14: 1626777.624 | G14: 971334.1338 | H14: 791605.144 | I14: 508733.3471 | J14: 261621.1367 | K14: 264154.6317 | L14: 289277.3084 | M14: 430206.5877 | N14: 833809.0043 | O14: 1427739.662 | P14: 11124790.29
B15: THERMS BLOCK 4 | D15: 517810.099 | E15: 408975.387 | F15: 348896.939 | G15: 206671.079 | H15: 243658.788 | I15: 186903.599 | J15: 147900.418 | K15: 154904.786 | L15: 183115.538 | M15: 208453.905 | N15: 250578.044 | O15: 307691.057 | P15: 3165559.639
B16: Total for 0111 | D16: =SUM(D12:D15) -> 3800925.764 | E16: =SUM(E12:E15) -> 3425607.183 | F16: 3411362.324 | G16: 2307805.877 | H16: 2054432.313 | I16: 1467322.596 | J16: 907262.64 | K16: 903343.9176 | L16: 1011581.795 | M16: 1366263.796 | N16: 2139277.703 | O16: 3011042.572 | P16: 25806228.48
C17: Check to Rev Runs | D17: =D16-'Rev Runs CY'!C21 -> 0 | E17: =E16-'Rev Runs CY'!D21 -> 0 | F17: =F16-'Rev Runs CY'!E21 -> 0 | G17: =G16-'Rev Runs CY'!F21 -> 0 | H17: =H16-'Rev Runs CY'!G21 -> 0 | I17: =I16-'Rev Runs CY'!H21 -> 0 | J17: =J16-'Rev Runs CY'!I21 -> 0 | K17: =K16-'Rev Runs CY'!J21 -> 0 | L17: =L16-'Rev Runs CY'!K21 -> 0 | M17: =M16-'Rev Runs CY'!L21 -> 0 | N17: =N16-'Rev Runs CY'!M21 -> 0 | O17: =O16-'Rev Runs CY'!N21 -> 0 | P17: 0 | Q17: =P17/P16 -> 0
D19: =D5 -> 202201 | E19: =E5 -> 202202 | F19: 202203 | G19: 202204 | H19: 202205 | I19: 202206 | J19: 202107 | K19: 202108 | L19: 202109 | M19: 202110 | N19: 202111 | O19: 202112 | P19: YTD
A20: 112 | B20: BASIC CHARGE GAS | D20: 0 | E20: 0 | F20: 0 | G20: 0 | H20: 0 | I20: 0 | J20: 0 | K20: 0 | L20: 0 | M20: 0 | N20: 0 | O20: 0 | P20: =SUM(D20:O20) -> 0
B21: NA | D21: 0 | E21: 0 | F21: 0 | G21: 0 | H21: 0 | I21: 0 | J21: 0 | K21: 0 | L21: 0 | M21: 0 | N21: 0 | O21: 0 | P21: 0
B22: RIDER 150 | D22: 0 | E22: 0 | F22: 0 | G22: 0 | H22: 0 | I22: 0 | J22: 0 | K22: 0 | L22: 0 | M22: 0 | N22: 0 | O22: 0 | P22: 0
B23: RIDER 155 | D23: 0 | E23: 0 | F23: 0 | G23: 0 | H23: 0 | I23: 0 | J23: 0 | K23: 0 | L23: 0 | M23: 0 | N23: 0 | O23: 0 | P23: 0
B24: RIDER 191 | D24: 0 | E24: 0 | F24: 0 | G24: 0 | H24: 0 | I24: 0 | J24: 0 | K24: 0 | L24: 0 | M24: 0 | N24: 0 | O24: 0 | P24: 0
B25: RIDER 197 | D25: 0 | E25: 0 | F25: 0 | G25: 0 | H25: 0 | I25: 0 | J25: 0 | K25: 0 | L25: 0 | M25: 0 | N25: 0 | O25: 0 | P25: 0
B26: THERMS BLOCK 1 | D26: 200 | E26: 200 | F26: 200 | G26: 400 | H26: 400 | I26: 238.773 | J26: 202.626 | K26: 200 | L26: 200 | M26: 394.764 | N26: 400 | O26: 400 | P26: =SUM(D26:O26) -> 3436.163
B27: THERMS BLOCK 2 | D27: 800 | E27: 800 | F27: 793.392 | G27: 1361.804 | H27: 1039.237 | I27: 800 | J27: 800 | K27: 800 | L27: 800 | M27: 800 | N27: 1328.301 | O27: 1527.573 | P27: =SUM(D27:O27) -> 11650.307
B28: THERMS BLOCK 3 | D28: 203.93 | E28: 265.375 | F28: 0 | G28: 9000 | H28: 9000 | I28: 9000 | J28: 9000 | K28: 9000 | L28: 9000 | M28: 9000 | N28: 9000 | O28: 9000 | P28: =SUM(D28:O28) -> 81469.305
B29: THERMS BLOCK 4 | G29: 4715.124 | H29: 73769.309 | I29: 50708.04 | J29: 33192.269 | K29: 32556.406 | L29: 34795.996 | M29: 58757.668 | N29: 44376.77 | O29: 2216.75 | P29: =SUM(D29:O29) -> 335088.332
B30: Total for 0111 | D30: =SUM(D26:D29) -> 1203.93 | E30: =SUM(E26:E29) -> 1265.375 | F30: 993.392 | G30: 15476.928 | H30: 84208.546 | I30: 60746.813 | J30: 43194.895 | K30: 42556.406 | L30: 44795.996 | M30: 68952.432 | N30: 55105.071 | O30: 13144.323 | P30: =SUM(D30:O30) -> 431644.107
C31: Check to Rev Runs | D31: =D30-'Rev Runs CY'!C22 -> 0 | E31: =E30-'Rev Runs CY'!D22 -> 0 | F31: =F30-'Rev Runs CY'!E22 -> 0 | G31: =G30-'Rev Runs CY'!F22 -> 0 | H31: =H30-'Rev Runs CY'!G22 -> 0 | I31: =I30-'Rev Runs CY'!H22 -> 0 | J31: =J30-'Rev Runs CY'!I22 -> 0 | K31: =K30-'Rev Runs CY'!J22 -> 0 | L31: =L30-'Rev Runs CY'!K22 -> 0 | M31: =M30-'Rev Runs CY'!L22 -> 0 | N31: =N30-'Rev Runs CY'!M22 -> 0 | O31: =O30-'Rev Runs CY'!N22 -> 0
